Cogmind - Beta 16 @@@ ROGUE MODE // 2025.10.26 @ 23:55:33 Player: Cogchaaaan Result: Self-destructed Performance ------------- Evolutions (9) 4500 Regions Visited (33) 6600 Robots Destroyed (734) 3670 Value Destroyed (39367) 39367 Prototype IDs (53) 1060 Alien Tech Used (11) 2200 Bonus (30038) 30038 TOTAL SCORE: 87435 Bonus ------- Triggered High Security 1000 High Alert Combat Kills 17568 Follower Combat Kills 1602 Network Hubs Disabled 200 Met Data Miner 300 Met Imprinter 300 Met Warlord at Base 500 MAIN.C Attacked Warlord 500 Warlord Defense Kills 126 Built Enhanced Grunts 300 Met R17 at Cetus 500 Used Core Reset Matrix 3000 Met R17 at Research 2000 Met Warlord at Research 2000 Scanned by Researcher 500 Friendly Fire -358 Cogmind --------- Core Integrity 1175/1850 Matter 22/300 Energy 69/600 System Corruption 0% +Membrane Temperature Cool (0) +ITN Movement Treading (250) Ox1 Location -1/Access Parts ------- > --- POWER (3) -------- Reinforced Quantum Reactor > --- PROPULSION (6) --- Armored Heavy Treads Armored Heavy Treads > --- UTILITY (11) ----- Huge Storage Unit Experimental Core Analyzer Improved Armor Integrity Analyzer Advanced Force Field > --- WEAPON (6) ------- KE Penetrator Hellfire Missile Launcher > --- INVENTORY (25) --- Reinforced Antimatter Reactor Vortex Chain Reactor High-capacity Storage Unit High-capacity Matter Pod (200) Advanced Force Field High-powered Tractor Beam Vortex Shotgun (31) Enhanced Nova Cannon Heavy Machine Gun Peak State ------------ > --- POWER ------------ Light Quantum Reactor Light Quantum Reactor Reinforced Quantum Reactor > --- PROPULSION ------- Biometal Heavy Treads Biometal Heavy Treads Experimental Biometal Heavy Treads > --- UTILITY ---------- Huge Storage Unit Advanced Visual Processing Unit Experimental Targeting Computer Experimental Core Analyzer Experimental Core Analyzer Improved Armor Integrity Analyzer Centrium Medium Armor Plating SHELL Armor Advanced Force Field > --- WEAPON ----------- Sigix Sheargun Sigix Sheargun Sigix Sheargun Helical Railgun Helical Railgun Multirail > --- INVENTORY -------- Reinforced Quantum Reactor Improved Quantum Reactor Vortex Chain Reactor Armored Heavy Treads Armored Heavy Treads High-capacity Storage Unit High-capacity Matter Pod Improved Focal Shield Advanced Force Field Advanced Force Field High-powered Tractor Beam Experimental Field Recycling Unit Transdimensional Reconstructor Vortex Shotgun Enhanced Nova Cannon Heavy Machine Gun KE Penetrator Railgun Railgun Multirail Gamma Bomb Array Hellfire Missile Launcher [Rating: 250] Favorites ----------- Power Antimatter Reactor Engine Improved Deuterium Engine Power Core Neutrino Core Reactor Antimatter Reactor Propulsion Light Treads Treads Light Treads Leg Aluminum Leg Utility Huge Storage Unit Device Structural Scanner Storage Huge Storage Unit Processor Advanced Targeting Computer Hackware Improved Hacking Suite Protection SHELL Armor Weapon Improved Assault Rifle Energy Gun Sigix Sheargun Energy Cannon Beam Cannon Ballistic Gun Improved Assault Rifle Ballistic Cannon Compact Linear Accelerator Launcher Improved Proton Missile Launcher Impact Weapon Maul Slashing Weapon Makeshift Axe Build | -11 -10 -10 -9 -9 -8 -7 -7 -7 -7 -6 -6 -6 -6 -6 -6 -6 -5 -5 -5 -5 -5 -4 -4 -4 -4 -4 -4 -3 -3 -2 -2 -2 -1 ------- Run | Yrd Mat Min Mat Min Mat Fac Low Low Dat Pro Fac Was Fac Low Low Zio Pro Fac Upp Upp War Pro Fac Ext Cet Arc Hub Res Tes Res Qua Sec Acc Slots Evolved 18 | . . . 2 . 2 2 . . . . 2 . . . . . . 2 . . . . 2 . . . . 2 . 2 . . 2 Power 2 | . . . . . . . . . . . 1 . . . . . . . . . . . . . . . . . . 1 . . . Propulsion 4 | . . . 1 . . 1 . . . . . . . . . . . 1 . . . . 1 . . . . . . . . . . Utility 8 | . . . . . 2 1 . . . . 1 . . . . . . 1 . . . . 1 . . . . 2 . . . . . Weapon 4 | . . . 1 . . . . . . . . . . . . . . . . . . . . . . . . . . 1 . . 2 Parts Attached 282 | 8 17 1 31 1 18 7 2 2 . 7 13 1 6 1 6 3 . 2 2 2 6 2 12 15 6 9 1 5 8 8 7 57 16 Power 46 | 1 3 . 4 . 2 1 . . . . 3 1 1 . . . . . . . . . 2 3 2 1 . . 2 1 4 13 2 Engine 11 | 1 2 . 2 . 1 1 . . . . 3 . 1 . . . . . . . . . . . . . . . . . . . . Core 9 | . 1 . 2 . 1 . . . . . . . . . . . . . . . . . 2 3 . . . . . . . . . Reactor 26 | . . . . . . . . . . . . 1 . . . . . . . . . . . . 2 1 . . 2 1 4 13 2 Propulsion 67 | 2 7 . 12 . 6 4 . . . 3 3 . 1 . 1 2 . . . . 1 . 2 7 1 1 . 3 . 3 . 6 2 Treads 60 | . 2 . 12 . 6 4 . . . 3 3 . 1 . 1 2 . . . . 1 . 2 7 1 1 . 3 . 3 . 6 2 Leg 7 | 2 5 . . . . . . . . . . . . . . . . . . . . . . . . . . . . . . . . Wheel . | . . . . . . . . . . . . . . . . . . . . . . . . . . . . . . . . . . Hover . | . . . . . . . . . . . . . . . . . . . . . . . . . . . . . . . . . . Flight . | . . . . . . . . . . . . . . . . . . . . . . . . . . . . . . . . . . Utility 98 | 2 3 . 4 1 7 2 2 2 . 2 4 . 4 . 2 . . 2 1 1 3 2 5 4 2 5 1 2 4 2 1 21 7 Device 44 | 1 1 . . . 1 . 2 1 . 1 . . . . 1 . . 2 1 . 2 . 2 2 . 4 . . 2 . 1 13 7 Storage 8 | 1 2 . 1 . 2 1 . . . . . . 1 . . . . . . . . . . . . . . . . . . . . Processor 21 | . . . . . 3 1 . . . . . . 1 . 1 . . . . . . . 1 2 . . 1 . 1 2 . 8 . Hackware 5 | . . . . . . . . . . . 1 . . . . . . . . 1 . 1 . . . 1 . 1 . . . . . Protection 20 | . . . 3 1 1 . . 1 . 1 3 . 2 . . . . . . . 1 1 2 . 2 . . 1 1 . . . . Artifact . | . . . . . . . . . . . . . . . . . . . . . . . . . . . . . . . . . . Weapon 71 | 3 4 1 11 . 3 . . . . 2 3 . . 1 3 1 . . 1 1 2 . 3 1 1 2 . . 2 2 2 17 5 Energy Gun 11 | 3 1 . . . . . . . . . . . . . . . . . . . 1 . . . . . . . . . . 6 . Energy Cannon 10 | . 2 1 . . . . . . . . 2 . . . 1 . . . . 1 . . 1 . . . . . 1 . 1 . . Ballistic Gun 42 | . 1 . 10 . 1 . . . . 2 1 . . . 1 1 . . 1 . 1 . 2 1 1 2 . . . 2 1 9 5 Ballistic Cannon 1 | . . . . . . . . . . . . . . . . . . . . . . . . . . . . . . . . 1 . Launcher 4 | . . . 1 . . . . . . . . . . . 1 . . . . . . . . . . . . . 1 . . 1 . Special Weapon . | . . . . . . . . . . . . . . . . . . . . . . . . . . . . . . . . . . Impact Weapon 1 | . . . . . 1 . . . . . . . . . . . . . . . . . . . . . . . . . . . . Slashing Weapon 2 | . . . . . 1 . . . . . . . . 1 . . . . . . . . . . . . . . . . . . . Piercing Weapon . | . . . . . . . . . . . . . . . . . . . . . . . . . . . . . . . . . . Special Melee Weapon . | . . . . . . . . . . . . . . . . . . . . . . . . . . . . . . . . . . Unidentified Prototypes 26 | . . . . . . . 1 . . . . . 1 . . . . . . . 3 . 1 . 3 . . . 2 4 . 10 1 Corrupted Parts 5 | . . . . . . . . . . . . . . . . 1 . . . . 1 . . . . 3 . . . . . . . System Corruption 25 | . . . . . . . . . . . . . . . . 10 . . . . 1 . . . . 14 . . . . . . . Parts Lost 75 | . 2 . 5 . 1 2 . . . 10 2 1 1 . 2 . . . . . . . 3 4 . . . . 1 . 2 19 20 Power 14 | . . . 2 . . 1 . . . 1 . 1 . . . . . . . . . . 1 . . . . . 1 . 1 4 2 Propulsion 16 | . . . 2 . . 1 . . . 3 2 . 1 . 1 . . . . . . . . 1 . . . . . . . 2 3 Utility 20 | . 1 . 1 . 1 . . . . 3 . . . . . . . . . . . . 2 1 . . . . . . . 4 7 Weapon 25 | . 1 . . . . . . . . 3 . . . . 1 . . . . . . . . 2 . . . . . . 1 9 8 Highest Loss Streak 18 | . 1 . 2 . 1 2 . . . 8 1 1 1 . 1 . . . . . . . 1 1 . . . . 1 . 1 5 18 To Critical Strikes 1 | . . . . . . . . . . . . . . . . . . . . . . . . 1 . . . . . . . . . Average Backups 19 | 3 7 13 14 20 24 20 18 20 20 16 17 19 18 18 18 18 19 17 18 19 22 24 23 23 22 22 23 20 20 21 21 20 20 Power 1 | . 1 1 . 2 1 . . . . . 1 2 2 2 2 2 2 1 2 2 2 3 2 2 3 2 1 1 1 1 3 2 2 Propulsion 3 | 1 2 4 4 6 8 6 7 7 7 5 4 4 4 4 3 3 4 3 3 3 3 5 4 4 2 2 3 2 2 2 2 1 1 Utility 7 | . 1 1 4 7 7 7 6 8 8 8 8 9 8 8 8 8 8 7 6 7 8 9 8 9 11 11 11 10 10 10 9 6 5 Weapon 6 | 1 2 6 5 4 6 5 5 5 5 2 3 4 4 4 4 5 5 5 6 7 7 7 7 6 6 6 7 7 6 6 5 7 8 Tool/Special . | . . . . . . . . . . . . . . . . . . . . . . . . . . . . . . . . . . Unused Backups 48 | . 1 2 5 1 7 3 . . . . 3 . 2 . . . . 1 1 . . . 1 1 2 2 1 2 1 2 2 5 3 Power 11 | . . . 1 . 1 . . . . . 1 . . . . . . 1 1 . . . . . 1 1 1 . . . 1 1 1 Propulsion 9 | . . . 3 . 3 . . . . . . . . . . . . . . . . . . . . . . 2 . 1 . . . Utility 14 | . 1 . . . 2 2 . . . . 1 . 2 . . . . . . . . . . . . 1 . . . 1 1 1 2 Weapon 14 | . . 2 1 1 1 1 . . . . 1 . . . . . . . . . . . 1 1 1 . . . 1 . . 3 . Tool/Special . | . . . . . . . . . . . . . . . . . . . . . . . . . . . . . . . . . . Average Slot Usage (%) 91 | . 99 100 99 99 99 99 99 100 100 94 97 95 99 100 100 99 100 99 100 100 95 93 94 95 90 85 95 92 79 78 79 78 78 Engine 3 | . 5 . 6 11 8 6 7 7 7 3 9 9 6 6 6 6 6 5 5 5 5 5 4 . . . . . . . . . . Core 1 | . 8 14 4 . . . . . . . . . . . . . . . . . . . 1 10 8 . . . . . . . . Reactor 5 | . . . . . . . . . . . . . 6 6 6 6 6 5 5 5 5 5 3 . 1 10 10 9 8 12 12 11 10 Treads 21 | . 2 28 32 33 26 29 28 28 28 27 24 22 25 25 25 24 25 27 27 27 23 22 25 25 25 25 25 19 13 12 12 12 10 Device 9 | . 13 14 . . . 6 13 13 14 12 10 12 11 12 11 11 11 13 14 16 16 15 13 9 5 8 10 11 13 11 12 7 7 Storage 6 | . 14 14 11 11 9 7 7 7 7 7 6 6 6 6 6 6 6 5 5 5 5 5 5 5 5 5 5 4 4 4 4 4 3 Processor 12 | . . . . . 17 15 14 14 14 14 12 12 12 12 12 12 12 11 11 11 11 11 14 19 25 21 20 18 14 12 12 15 15 Hackware 3 | . . . . . . . . . . . 6 6 6 6 6 6 6 5 5 5 5 5 5 5 5 5 5 9 5 4 4 3 . Protection 5 | . . . 10 10 7 7 6 7 7 7 7 6 6 6 6 6 6 7 6 4 5 5 6 5 5 5 5 5 4 4 4 5 5 Energy Gun 1 | . 20 . . . . . . . . . . . . . . . . . . . . . . . . . . . . . . 3 10 Energy Cannon 1 | . 3 28 . . . . . . . . . . . . . . 2 . . 2 . . . . . . . . 1 . . . . Ballistic Gun 14 | . 3 . 32 33 25 21 15 16 14 20 14 17 13 12 16 12 14 11 13 13 12 15 12 14 9 6 14 12 11 15 15 11 11 Slashing Weapon 1 | . . . . . 1 1 6 4 7 . 2 . 3 6 1 5 . 4 1 . 2 . 2 . . . . . . . . . . Peak Build Rating 250 | 7 10 10 22 22 30 33 36 40 36 41 59 58 63 61 67 72 66 74 77 71 94 98 117 118 141 141 144 166 177 210 211 232 250 Average Rating 106 | 5 8 10 16 21 26 31 34 36 36 37 50 52 59 60 61 61 61 70 71 70 83 92 109 116 125 125 142 152 164 195 201 211 241 On Entrance 79 | . 7 10 10 21 21 29 33 36 36 36 38 54 58 60 61 62 61 60 69 71 71 90 93 109 117 141 137 144 157 165 210 196 232 Avg Prop Armor Cover (%) 6 | . . . . . . . . . . 6 7 . . . . . . . . . . . . . . . . . . . . . . Naked Turns . | . . . . . . . . . . . . . . . . . . . . . . . . . . . . . . . . . . Heaviest Build 236 | 13 32 32 100 103 103 101 65 71 61 75 89 84 96 85 104 92 104 109 109 92 137 139 152 152 158 158 162 169 177 207 209 226 236 Greatest Support 255 | 20 40 40 60 60 60 80 80 80 80 86 86 86 89 89 88 113 85 108 108 108 139 139 168 176 184 184 184 220 220 225 225 255 235 Greatest Overweight (x) 3 | 3 1 . 1 1 1 1 . . . . 1 1 1 . 1 2 1 1 1 . 1 . . . . . . 1 . . . . 1 Average Overweight (x) . | . . . . 1 1 . . . . . . . . . . . . . . . . . . . . . . . . . . . . Largest Inventory Capacity 25 | 8 15 15 25 25 25 25 20 20 20 20 20 20 20 20 20 20 20 20 20 20 25 25 25 25 25 25 25 25 25 25 25 25 25 Average Capacity 22 | 7 8 15 16 25 25 22 20 20 20 20 20 20 20 20 20 20 20 20 20 20 23 25 25 25 25 25 25 25 25 25 25 25 25 Most Carried 25 | 5 12 15 20 25 25 22 20 20 20 20 20 20 20 20 20 20 20 20 20 20 25 25 25 25 25 25 25 24 25 25 25 25 25 Average Carried 21 | 3 7 13 14 20 24 20 18 20 20 16 17 19 19 19 19 19 19 18 19 20 23 24 24 24 24 24 24 23 24 24 24 23 22 Final Capacity 25 | 8 15 15 25 25 25 20 20 20 20 20 20 20 20 20 20 20 20 20 20 20 25 25 25 25 25 25 25 25 25 25 25 25 25 Final Carried 25 | 5 12 15 20 25 23 19 20 20 20 14 19 20 20 20 20 20 20 20 20 20 25 25 23 25 25 25 25 24 25 25 25 25 10 Class Distribution -------------------- 19% | Scavenger-Tank 18% | Scavenger-Skirmisher 12% | Scavenger-Assassin 10% | Scavenger-Gunner 7% | Mutant 6% | Gunner 4% | Tank 4% | Alien-Executioner 3% | Scavenger-Mutant 3% | Alien-Gunner 3% | Skirmisher Dominant Class ---------------- Mutant | -10/Materials Mutant | -10/Mines Scavenger-Tank | -9/Materials Tank | -9/Mines Gunner | -8/Materials Scavenger-Gunner | -7/Factory Scavenger-Assassin | -7/Lower Caves Scavenger-Assassin | -7/Lower Caves Scavenger-Assassin | -7/Data Miner Skirmisher | -6/Proximity Caves Scientist-Skirmisher | -6/Factory Skirmisher | -6/Waste Scavenger-Assassin | -6/Factory Assassin | -6/Lower Caves Skirmisher | -6/Lower Caves Scavenger-Assassin | -6/Zion Scavenger-Skirmisher | -5/Proximity Caves Scavenger-Assassin | -5/Factory Scavenger-Skirmisher | -5/Upper Caves Scavenger-Skirmisher | -5/Upper Caves Scavenger-Assassin | -5/Warlord Scavenger-Skirmisher | -4/Proximity Caves Scavenger-Skirmisher | -4/Factory Scavenger-Tank | -4/Extension Scavenger-Tank | -4/Cetus Scavenger-Mutant | -4/Archives Scavenger-Tank | -4/Hub_04(d) Scavenger-Tank | -3/Research Scavenger-Skirmisher | -3/Testing Scavenger-Tank | -2/Research Scavenger-Skirmisher | -2/Quarantine Scavenger-Gunner | -2/Section 7 Alien-Executioner | -1/Access Resources | -11 -10 -10 -9 -9 -8 -7 -7 -7 -7 -6 -6 -6 -6 -6 -6 -6 -5 -5 -5 -5 -5 -4 -4 -4 -4 -4 -4 -3 -3 -2 -2 -2 -1 ----------- Run | Yrd Mat Min Mat Min Mat Fac Low Low Dat Pro Fac Was Fac Low Low Zio Pro Fac Upp Upp War Pro Fac Ext Cet Arc Hub Res Tes Res Qua Sec Acc Matter Collected 24713 | 280 321 . 976 46 1414 184 276 166 . 538 699 200 707 178 351 55 533 79 753 20 230 220 1551 909 357 530 328 536 1902 308 2465 5497 2104 Remotely 9746 | . . . . . . . . . . . . . . . . . . . 209 . 18 52 695 . 105 236 96 156 1589 . 1539 3674 1377 Salvage Created 44227 | 144 730 183 1566 189 2578 325 124 41 . 533 688 475 776 . 525 . 534 79 509 . . 228 2150 1228 393 421 837 408 2730 356 3084 11968 10425 Parts 1612 | 9 33 15 103 14 156 16 4 3 . 24 48 10 30 . 19 . 21 4 19 . . 13 132 54 19 34 46 13 168 17 152 256 180 Haulers Intercepted 18 | . 2 . 5 . 6 . . . . 1 . . . . . . . . . . . . . . . . . . . 2 . . 2 Recyclers Shooed 15 | . 1 . . . . . . . . . 2 . 4 . . . . . . . . . 1 . . . . . 1 . 2 1 3 Parts Field Recycled . | . . . . . . . . . . . . . . . . . . . . . . . . . . . . . . . . . . Retrieved Matter . | . . . . . . . . . . . . . . . . . . . . . . . . . . . . . . . . . . Parts Self-Destructed 69 | . . . . . . . 3 4 . 23 . . . . 6 . 14 . 15 . . 4 . . . . . . . . . . . Prevented 33 | . . . . . . . . . . . . . . . 11 . 7 . 9 . . 6 . . . . . . . . . . . Parts Restored . | . . . . . . . . . . . . . . . . . . . . . . . . . . . . . . . . . . Kills | -11 -10 -10 -9 -9 -8 -7 -7 -7 -7 -6 -6 -6 -6 -6 -6 -6 -5 -5 -5 -5 -5 -4 -4 -4 -4 -4 -4 -3 -3 -2 -2 -2 -1 ------- Run | Yrd Mat Min Mat Min Mat Fac Low Low Dat Pro Fac Was Fac Low Low Zio Pro Fac Upp Upp War Pro Fac Ext Cet Arc Hub Res Tes Res Qua Sec Acc Combat Hostiles Destroyed 565 | . 15 3 30 4 35 7 4 1 . 9 13 2 5 . 9 . 13 1 8 . 1 6 29 15 5 1 9 4 26 3 36 146 125 Guns 497 | . 12 . 27 4 35 4 3 1 . 7 11 2 4 . 3 . 4 1 5 . 1 3 22 15 5 1 6 4 19 3 36 146 113 Cannons 8 | . 1 3 . . . . . . . . 1 . 1 . . . . . 1 . . . 1 . . . . . . . . . . AOE 43 | . . . 3 . . 3 1 . . 2 . . . . 5 . 9 . 2 . . 3 1 . . . . . 3 . . . 11 Classes Destroyed 26 | 2 3 2 2 . 2 2 . . . 1 . 1 . . . . . . . . 1 . . 1 . . . . 1 . 1 7 . Worker 39 | . . . 3 . 6 . . . . . . . . . . . . . . . . . 8 . . . 5 2 3 . 1 5 6 Builder 29 | . . 2 3 1 2 1 . . . . . . . . . . . . . . . . 6 1 . . . . 6 . 1 5 1 Tunneler 7 | 2 . . 1 . . . . . . . 1 . . . . . . . . . . . . 1 . . . . . . . . 2 Hauler 18 | . 2 . 5 . 6 . . . . 1 . . . . . . . . . . . . . . . . . . . 2 . . 2 Recycler 21 | 1 . 1 . 1 1 . . . . . . . 4 . . . . . . . . . 2 . . . 1 1 2 . 2 3 2 Mechanic 11 | . . . . . . . . . . . . . . . . . . . . . . . . . . . . . . . . 5 6 Operator 12 | . . . . . . . . . . . . . . . . . . . . . . . . 2 . 8 1 . . . 1 . . Watcher 25 | . 2 . 5 . 5 . . . . . . . . . . . . . . . . . . 2 1 . . . 3 . 3 3 1 Swarmer 78 | . . 3 8 3 3 1 . . . . 3 . . . 5 . 9 . 1 . . 4 8 . . . 2 2 . . 4 17 5 Saboteur 15 | . . . . . . . . . . . . . . . . . . . . . . . . . . . . . . . . 5 10 Grunt 213 | . 15 . 15 . 17 3 4 . . 7 3 . . . 2 . 3 . 3 . . . 4 8 . . 3 1 5 . 15 53 52 Brawler 21 | . . . . . . 1 . . . . . . . . . . . . 1 . . . . . . . . . . . . 8 11 Duelist 21 | . . . . . 2 1 . . . . . . . . . . . . 1 . . . . . . . . . . . . 7 10 Protector 7 | . . . . . . . . . . . . . . . . . . . . . . . . . . . . . . . . 4 3 Researcher 7 | . . . . . . . . . . . . . . . . . . . . . . . . . . . . . 4 . . 3 . Sentry 41 | . . . 7 1 10 . . . . . 2 . 1 . 1 . 1 1 1 . . . 4 3 . 1 1 1 3 . . 3 . Demolisher 1 | . . . . . . . . . . . . . . . . . . . . . 1 . . . . . . . . . . . . Specialist 2 | . . . . . . . . . . . . . . . . . . . . . . . . . . . . . . . . 2 . Hunter 39 | . . . . . 3 . . 1 . . 2 . 1 . 1 . . . 1 . . . 4 1 . . . . 6 2 4 5 8 Programmer 80 | . . . . . . 1 . . . 1 3 . 3 . . . . . . . . 2 9 2 . . 2 . 12 . 11 22 12 Q-Series 4 | . . . . . . . . . . . . . . . . . . . . . . . . . . . . . . . 2 2 . Behemoth 5 | . . . . . . . . . . 1 . . . . . . . . . . . . . 1 . . 1 . . 1 . 1 . Compactor 2 | . . . . . . . . . . . . 2 . . . . . . . . . . . . . . . . . . . . . Cetus Guard 5 | . . . . . . . . . . . . . . . . . . . . . . . . . 5 . . . . . . . . S7 Guard 3 | . . . . . . . . . . . . . . . . . . . . . . . . . . . . . . . . 3 . Striker 11 | . . . . . . . . . . . . . . . . . . . . . . . . . . . . . . . . 6 5 Executioner 15 | . . . . . . . . . . . . . . . . . . . . . . . . . . . . . . . . 6 9 Alpha 7 2 | . . . . . . . . . . . . . . . . . . . . . . . . . . . . . . . . 2 . Best Kill Streak 47 | 3 3 5 7 3 5 4 4 1 . 5 3 1 2 . 5 . 4 1 4 . 1 4 9 4 3 5 9 3 7 3 6 18 47 Combat Bots Only 41 | . 2 3 7 3 4 3 4 1 . 4 3 1 1 . 5 . 4 1 4 . 1 4 5 4 3 1 4 2 5 2 5 17 41 Max Kills in Single Turn 5 | 1 1 1 3 2 2 2 1 1 . 2 1 1 1 . 3 . 4 1 1 . 1 1 3 2 1 2 2 2 2 1 2 5 5 Gunslinging 2 | . . . . 1 1 . . . . . . . . . . . . . . . . . 1 1 . . . . . . 1 1 2 Exploded 4 | . . . 2 . . 2 1 . . 2 . . . . 3 . 4 . 1 . . 1 1 . . . . . 2 . . . 4 Melee . | . . . . . . . . . . . . . . . . . . . . . . . . . . . . . . . . . . Uniques/NPCs Destroyed . | . . . . . . . . . . . . . . . . . . . . . . . . . . . . . . . . . . Combat | -11 -10 -10 -9 -9 -8 -7 -7 -7 -7 -6 -6 -6 -6 -6 -6 -6 -5 -5 -5 -5 -5 -4 -4 -4 -4 -4 -4 -3 -3 -2 -2 -2 -1 -------- Run | Yrd Mat Min Mat Min Mat Fac Low Low Dat Pro Fac Was Fac Low Low Zio Pro Fac Upp Upp War Pro Fac Ext Cet Arc Hub Res Tes Res Qua Sec Acc Hostile Shots Fired 2911 | . 75 12 150 2 123 23 25 6 . 128 82 1 46 . 29 . 38 9 31 . 1 33 205 91 15 3 46 33 234 . 234 755 481 Missed 633 | . 18 3 32 1 32 8 8 3 . 29 27 . 11 . 7 . 13 2 11 . 1 10 72 23 2 2 14 10 65 . 48 110 71 Hits 2278 | . 57 9 118 1 91 15 17 3 . 99 55 1 35 . 22 . 25 7 20 . . 23 133 68 13 1 32 23 169 . 186 645 410 Melee 82 | . . . . . 6 9 . . . . . 1 . . . . . . . . . . . . . . . . . . . 20 46 Projectile 2196 | . 57 9 118 1 85 6 17 3 . 99 55 . 35 . 22 . 25 7 20 . . 23 133 68 13 1 32 23 169 . 186 625 364 AOE 16 | . . . . . . . . . . . . . . . . . . . . . 2 . . . . . 1 . . . 1 12 . Critical Strikes 130 | . 2 . 3 . 6 4 . . . 3 . . 1 . . . 3 1 2 . . 1 9 3 2 . 4 1 7 . 9 39 30 Part Disruptions 9 | . . . . . . 1 . . . 1 . . . . . . . . . . . . 1 . . . . . . . 2 4 . Actively Blocked 1 | . . . . . . . . . . . . . . . . . . . . . . . . . . . . . . . . 1 . Damage Taken 35991 | . 719 73 1281 9 1386 403 179 39 . 2083 538 30 414 . 239 . 357 76 213 . 68 224 1887 884 223 12 474 397 1912 . 2486 10942 8443 Core 2235 | . 139 22 127 . 126 41 7 . . 256 29 . 36 . 17 . 42 . 13 . . 7 194 51 . . . 41 49 . 79 411 548 Absorbed by Shields 15626 | . . . . . . . 68 12 . 200 144 . 100 . 126 . 138 81 222 . 15 169 751 810 230 12 490 121 1163 . 1982 6531 2261 Reduced by Siege Mode 1808 | . . . . . . . . . . . . . . . . . . . . . . . . . . . . . 170 . 206 975 457 Ignored by Resistances 1219 | . . . 78 . 6 2 34 . . 48 . . . . . . . . . . . . . . . . . . . . . . 1051 Regen/Repaired (Parts) 9094 | . . . . . 511 . . . . . . . . . . 931 . . . . 3 . 115 . . . . . 819 . 921 4529 1265 Core Remaining (%) 76 | 100 . 35 . 68 77 . . . . 56 . . . . . . 85 . . . . 98 . . . . 78 . 93 . . 71 . Volleys Fired 1484 | 4 79 9 121 4 113 19 7 3 . 44 37 36 27 . 12 . 51 5 43 3 4 15 76 56 15 24 22 15 85 18 93 320 124 Largest 6 | 2 2 2 3 3 3 3 3 3 . 3 3 3 3 . 3 . 3 3 3 1 3 3 3 3 3 3 3 3 3 4 4 4 6 Hottest 421 | 100 120 120 69 69 71 71 71 71 . 71 90 90 90 . 85 . 85 71 85 98 79 144 99 101 101 101 105 168 113 138 143 345 421 Shots Fired 4543 | 8 156 18 359 12 339 51 15 9 . 127 87 96 46 . 20 . 74 15 79 3 12 32 194 161 45 67 50 41 207 42 343 1136 699 Gun 4277 | 8 146 . 357 12 339 48 12 9 . 124 75 90 28 . 11 . 35 15 54 . 12 24 177 160 45 67 42 38 179 41 334 1103 692 Cannon 192 | . 10 18 . . . . . . . . 12 6 18 . 5 . 26 . 18 3 . 3 9 . . . 3 3 17 1 9 31 . Launcher 74 | . . . 2 . . 3 3 . . 3 . . . . 4 . 13 . 7 . . 5 8 1 . . 5 . 11 . . 2 7 Special . | . . . . . . . . . . . . . . . . . . . . . . . . . . . . . . . . . . Kinetic 3621 | . 22 . 357 12 339 48 12 9 . 124 75 90 28 . 11 . 35 15 54 . 12 24 177 160 45 67 42 38 179 32 334 921 359 Thermal 329 | 8 134 18 . . . . . . . . 5 6 15 . 2 . 26 . 15 3 . 3 . . . . 3 3 17 1 9 61 . Explosive 16 | . . . 2 . . 3 3 . . 3 . . . . . . . . . . . . . . . . . . . . . . 5 Electromagnetic 83 | . . . . . . . . . . . 7 . 3 . 7 . 13 . 10 . . 5 17 1 . . 5 . 11 . . 2 2 Slashing 475 | . . . . . . . . . . . . . . . . . . . . . . . . . . . . . . . . 144 331 Entropic 19 | . . . . . . . . . . . . . . . . . . . . . . . . . . . . . . 9 . 8 2 Robot Hit Streak 81 | 7 10 4 14 7 28 18 11 9 . 28 36 45 28 . 17 . 28 41 43 . 3 15 24 18 11 10 8 8 24 12 27 64 81 Robot Miss Streak 7 | . 4 1 4 1 3 3 1 . . 1 1 2 1 . . . 2 . 2 . 2 1 5 4 3 5 2 3 5 2 3 4 7 Penetration Max 2 | . . . . . . . . . . . . . . . . . . . 1 . . . 1 1 . . 1 1 1 . 1 2 2 Secondary Targets 141 | . 1 . 1 1 3 1 2 . . 2 1 1 . . . . 1 . . . 1 . 3 7 3 . 2 2 7 . 10 51 41 Max Gunslinging Chain 2 | . 1 . 1 1 1 1 1 . . 1 1 1 . . . . 1 . . . 1 . 1 2 1 . 1 1 1 . 1 2 2 Shots Hit Robots 3341 | 7 109 9 228 7 244 41 11 8 . 109 68 75 34 . 16 . 32 13 44 . 8 22 132 121 31 47 29 28 127 30 247 905 559 Core Hits 1931 | 4 36 7 83 7 100 20 13 3 . 35 31 16 16 . 17 . 31 5 18 . 1 11 67 57 14 18 24 12 95 18 112 533 527 Critical Kills 98 | . 1 . 1 . 2 . . . . . 1 . . . . . . . . . . . 7 5 2 5 4 3 17 1 10 32 7 Critical Parts Destroyed 114 | . 1 . . . 2 . . . . . . . . . . . 1 . . . . 1 10 13 1 5 4 3 11 1 18 34 9 Critical Strikes 262 | . 12 . 1 . 4 . . . . . 1 1 . . . . 1 . . . . 1 19 21 5 10 10 7 28 2 29 77 33 Burn 11 | . 10 . . . . . . . . . . . . . . . . . . . . . . . . . . . . . . 1 . Meltdown 1 | . 1 . . . . . . . . . . . . . . . . . . . . . . . . . . . . . . . . Destroy 226 | . 1 . 1 . 4 . . . . . 1 1 . . . . 1 . . . . 1 19 21 5 10 10 7 28 1 29 68 18 Sever 22 | . . . . . . . . . . . . . . . . . . . . . . . . . . . . . . . . 7 15 Detonate 2 | . . . . . . . . . . . . . . . . . . . . . . . . . . . . . . 1 . 1 . Melee Attacks 86 | . . . . . 8 3 2 1 . 3 6 . 25 1 3 . . 4 . . 20 . 10 . . . . . . . . . . Impact 1 | . . . . . 1 . . . . . . . . . . . . . . . . . . . . . . . . . . . . Slashing 85 | . . . . . 7 3 2 1 . 3 6 . 25 1 3 . . 4 . . 20 . 10 . . . . . . . . . . Piercing . | . . . . . . . . . . . . . . . . . . . . . . . . . . . . . . . . . . Sneak Attacks 11 | . . . . . . . . . . . 3 . 8 . . . . . . . . . . . . . . . . . . . . Combat Hostiles . | . . . . . . . . . . . . . . . . . . . . . . . . . . . . . . . . . . Follow-up Attacks . | . . . . . . . . . . . . . . . . . . . . . . . . . . . . . . . . . . Damage Inflicted 104317 | 88 1376 193 2765 149 3774 977 391 97 . 2360 1317 1138 1018 . 712 . 1288 207 964 . 106 711 4598 3416 778 1215 1429 847 5047 1185 6684 30562 28925 Guns 91322 | 88 1265 . 2507 98 3707 645 129 97 . 1748 912 1138 375 . 121 . 444 207 733 . 106 412 3797 3392 778 1215 895 847 3451 1099 6626 30081 24409 Cannons 1084 | . 104 157 . . . . . . . . 215 . 61 . 92 . . . 58 . . . 231 . . . . . 124 . . 42 . Explosions 10438 | . . . 253 . . 332 262 . . 612 . . . . 306 . 844 . 173 . . 299 556 . . . 511 . 1399 86 . 385 4420 Melee 918 | . . . . . . . . . . . 190 . 535 . 193 . . . . . . . . . . . . . . . . . . Ramming 555 | . 7 36 5 51 67 . . . . . . . 47 . . . . . . . . . 14 24 . . 23 . 73 . 58 54 96 Kinetic 69412 | . 228 . 2507 98 3707 645 129 97 . 1748 912 1138 375 . 121 . 444 207 733 . 106 412 3797 3392 778 1215 895 847 3451 447 6626 22920 11437 Thermal 3037 | 88 1141 157 . . . . . . . . . . . . 45 . 63 . . . . 36 . . . . . . 264 86 . 798 359 Explosive 5127 | . . . 253 . . 276 262 . . 612 . . . . . . . . . . . . . . . . . . . . . 238 3486 Electromagnetic 5092 | . . . . . . 56 . . . . 215 . 61 . 353 . 781 . 231 . . 263 787 . . . 511 . 1259 . . . 575 Impact . | . . . . . . . . . . . . . . . . . . . . . . . . . . . . . . . . . . Slashing 19694 | . . . . . . . . . . . 190 . 535 . 193 . . . . . . . . . . . . . . . . 5910 12866 Piercing . | . . . . . . . . . . . . . . . . . . . . . . . . . . . . . . . . . . Entropic 1400 | . . . . . . . . . . . . . . . . . . . . . . . . . . . . . . 652 . 642 106 Highest Corruption 24 | . . . . . . . . . . 2 2 2 2 2 2 12 . . . . 1 2 9 9 5 8 . . 24 . 17 17 . Average Corruption 6 | . . . . . . . . . . 1 1 2 2 2 2 3 . . . . 1 1 2 4 5 3 . . 14 . 11 7 . Corruption Purged 24 | . . . . . . . . . . . . . . . . . . . . . . . . 5 . 19 . . . . . . . Corruption Blocked . | . . . . . . . . . . . . . . . . . . . . . . . . . . . . . . . . . . Effects 530 | . . . . . . . . . . 12 4 12 26 6 17 1 . . . . . 4 18 32 16 18 . . 72 . 62 230 . Message Errors 114 | . . . . . . . . . . 5 . 5 8 . 5 . . . . . . 1 1 8 6 7 . . 12 . 14 42 . Matter Fused 118 | . . . . . . . . . . 2 3 1 6 3 1 1 . . . . . 1 1 3 4 3 . . 22 . 11 56 . Heat Flow Errors 66 | . . . . . . . . . . 2 . 2 3 2 2 . . . . . . 1 1 6 1 2 . . 10 . 7 27 . Energy Discharges 66 | . . . . . . . . . . . . 3 3 . 2 . . . . . . . 5 3 2 5 . . 5 . 9 29 . Parts Rejected 7 | . . . . . . . . . . . . . . . 1 . . . . . . . 1 . . 1 . . 1 . 1 2 . Parts Fused 5 | . . . . . . . . . . . . . 1 . . . . . . . . . 1 . . . . . 1 . . 2 . Data Loss (minor) 67 | . . . . . . . . . . 2 . . 2 1 3 . . . . . . . 6 4 3 . . . 7 . 8 31 . Data Loss (major) 27 | . . . . . . . . . . . 1 1 1 . 1 . . . . . . . . . . . . . 5 . 3 15 . Misfires 30 | . . . . . . . . . . 1 . . 1 . 2 . . . . . . 1 2 4 . . . . 7 . 5 7 . Alerts 7 | . . . . . . . . . . . . . 1 . . . . . . . . . . . . . . . 1 . . 5 . Weapon Failures 23 | . . . . . . . . . . . . . . . . . . . . . . . . 4 . . . . 1 . 4 14 . Overload Shots . | . . . . . . . . . . . . . . . . . . . . . . . . . . . . . . . . . . Overflow Damage 501 | . . . . . . . 4 . . 4 . . 121 . 41 . 4 . . . . . 10 . . . . . 12 . . 86 219 Projectiles 20 | . . . . . . . . . . . . . . . . . . . . . . . 10 . . . . . 10 . . . . Explosions 271 | . . . . . . . 4 . . 4 . . . . 2 . 4 . . . . . . . . . . . 2 . . 72 183 Melee 210 | . . . . . . . . . . . . . 121 . 39 . . . . . . . . . . . . . . . . 14 36 Knockbacks 2 | . . . . . . . . . . . . . . . . . . . . . . . . . . . . . . . 1 1 . Impact 2 | . . . . . . . . . . . . . . . . . . . . . . . . . . . . . . . 1 1 . Kinetic . | . . . . . . . . . . . . . . . . . . . . . . . . . . . . . . . . . . Secondary . | . . . . . . . . . . . . . . . . . . . . . . . . . . . . . . . . . . Self-Inflicted Damage 931 | . . . . . . 22 . . . 57 . . . . . . . . . . . . 115 . . . 13 . 21 . . 222 481 Shots 19 | . . . . . . 1 . . . 2 . . . . . . . . . . . . 4 . . . 1 . 2 . . 4 5 Rammed 29 | . . 5 1 4 4 . . . . . . . 4 . . . . . . . . . 1 2 . . 2 . 2 . 2 1 1 Targets Rammed 34 | . 1 5 1 4 6 . . . . . . . 4 . . . . . . . . . 2 2 . . 2 . 2 . 2 1 2 Kicked 1 | . 1 . . . . . . . . . . . . . . . . . . . . . . . . . . . . . . . . Crushed 4 | . . . . . 2 . . . . . . . . . . . . . . . . . 1 . . . . . . . . . 1 Highest Temperature 420 | 48 136 330 270 12 141 40 35 26 . 314 294 260 397 255 269 . 420 . 32 44 . 164 200 200 265 402 112 196 413 97 373 318 253 Average Temperature 138 | 18 50 113 60 8 24 18 17 13 . 134 82 59 109 123 81 . 126 . 12 22 . 47 47 91 60 109 49 99 75 41 31 215 174 Received Heat Transfer 4467 | . 444 . 462 . 405 9 104 . . 853 77 . 29 . . . 107 8 65 . . . 52 115 8 . 58 75 96 . 116 720 664 Thermoelectric Energy+ 59782 | . . . . . . . . . . . . . . . . . . . . . . . . . . . . . . . . 53017 6765 Effects 167 | . . . . . . . . . . . 1 . 2 . . . 5 . . . . . 1 . . 8 . . 4 . 3 133 10 Shutdowns 7 | . . . . . . . . . . . . . 1 . . . 2 . . . . . . . . 1 . . 2 . 1 . . Energy Bleed 61 | . . . . . . . . . . . . . . . . . 2 . . . . . 1 . . 1 . . 1 . . 52 4 Interference 96 | . . . . . . . . . . . 1 . 1 . . . . . . . . . . . . 5 . . . . 2 81 6 Matter Decay 1 | . . . . . . . . . . . . . . . . . 1 . . . . . . . . . . . . . . . . Damage (minor) 2 | . . . . . . . . . . . . . . . . . . . . . . . . . . 1 . . 1 . . . . Siege Activations 63 | . . . . . . . . . . . . . . . . . . . . . . . . . . 1 . . 10 1 15 25 11 Total Turns 5962 | . . . . . . . . . . . . . . . . . . . . . . . . . . 107 . . 168 13 278 4196 1200 Longest Duration 1466 | . . . . . . . . . . . . . . . . . . . . . . . . . . 107 . . 41 13 51 1466 738 Martial Activations . | . . . . . . . . . . . . . . . . . . . . . . . . . . . . . . . . . . Shielding Activations . | . . . . . . . . . . . . . . . . . . . . . . . . . . . . . . . . . . Robots Disrupted . | . . . . . . . . . . . . . . . . . . . . . . . . . . . . . . . . . . Combat Hostiles . | . . . . . . . . . . . . . . . . . . . . . . . . . . . . . . . . . . Robots Corrupted 16 | . . . . . . . . . . . 1 . . . 1 . . . . . . . 5 . . . 3 . 4 . . 1 1 Combat Hostiles 15 | . . . . . . . . . . . 1 . . . 1 . . . . . . . 5 . . . 3 . 4 . . . 1 Parts Fried 38 | . . . . . . . . . . . 2 . . . 3 . . . 3 . . . 10 . . . . . 13 . . 1 6 Impact Corruptions 3 | . . . . . . . . . . . . . . . . . . . . . . . . . . . . . . . . 1 2 Robots Melted 2 | . 2 . . . . . . . . . . . . . . . . . . . . . . . . . . . . . . . . Combat Hostiles 2 | . 2 . . . . . . . . . . . . . . . . . . . . . . . . . . . . . . . . Parts Melted 12 | . 8 . . . . . . . . . . . . . . . . . . . . . . 1 . . . . . . . 3 . Heat Transferred 6437 | 259 3998 333 . . . . . . . . . . . . . . 100 . . . . 50 . . . . . . 261 50 . 1136 250 Parts Sabotaged 7 | . . . . . . . . . . . . . . . . . . . . . . . . . . . . . . . . 1 6 Parts Stolen . | . . . . . . . . . . . . . . . . . . . . . . . . . . . . . . . . . . Parts Stripped . | . . . . . . . . . . . . . . . . . . . . . . . . . . . . . . . . . . Power Chain Reactions 10 | . . . . . . . . . . . . . . . 1 . 2 . . . . 1 . . . . . . 3 . . 1 2 Alert | -11 -10 -10 -9 -9 -8 -7 -7 -7 -7 -6 -6 -6 -6 -6 -6 -6 -5 -5 -5 -5 -5 -4 -4 -4 -4 -4 -4 -3 -3 -2 -2 -2 -1 ------- Run | Yrd Mat Min Mat Min Mat Fac Low Low Dat Pro Fac Was Fac Low Low Zio Pro Fac Upp Upp War Pro Fac Ext Cet Arc Hub Res Tes Res Qua Sec Acc Maximum Alert Level 5 | . . . 1 . 2 2 . . . . . . . . . . . . . . . . 1 2 1 1 3 1 2 1 2 5 5 Low Security (%) 57 | 100 100 100 86 100 76 24 . . . . 100 100 100 . . . . 100 . . . . 90 19 47 55 11 76 68 78 70 1 . Level 1 13 | . . . 13 . 17 40 . . . . . . . . . . . . . . . . 9 63 52 44 62 23 23 21 28 2 . Level 2 3 | . . . . . 6 35 . . . . . . . . . . . . . . . . . 16 . . 18 . 7 . 1 5 . Level 3 3 | . . . . . . . . . . . . . . . . . . . . . . . . . . . 7 . . . . 13 . Level 4 7 | . . . . . . . . . . . . . . . . . . . . . . . . . . . . . . . . 34 . Level 5 2 | . . . . . . . . . . . . . . . . . . . . . . . . . . . . . . . . 3 25 High Security 12 | . . . . . . . . . . . . . . . . . . . . . . . . . . . . . . . . 39 74 Max Security . | . . . . . . . . . . . . . . . . . . . . . . . . . . . . . . . . . . Sterilizations 1 | . . . . . . . . . . . . . . . . . . . . . . . . . . . . . . . . 1 . Peak Influence 4537 | 5 61 76 342 117 466 450 . . . . 167 57 47 . . . . 28 . . . . 361 631 288 309 807 336 462 276 408 2981 4537 Initial 1788 | . . 6 16 47 2 209 . . . . . 54 . . . . . 28 . . . . . 173 190 75 8 336 1 253 . 45 1788 Average 594 | 1 28 8 95 12 138 306 . . . . 28 4 8 . . . . 7 . . . . 111 314 199 173 376 115 139 112 125 1752 2618 Influence Increases 18800 | 15 405 85 937 100 1156 402 90 30 . 230 395 3 248 . 205 . 395 38 270 . 20 170 996 1249 360 354 1063 138 974 193 1144 3956 3179 Destroy 0b10 Robot/C 11920 | . 300 60 600 80 700 140 80 20 . 180 260 . 100 . 180 . 320 20 180 . 20 120 580 580 160 80 320 80 600 100 720 2900 2440 Destroy 0b10 Robot/NC 880 | 15 20 15 85 10 100 5 . . . 5 5 . 20 . 5 . . . . . . . 80 35 10 45 50 15 70 10 40 125 115 Destroy Leader 2014 | . 78 10 160 10 212 20 10 10 . 30 80 . 50 . 20 . 30 10 10 . . 20 120 54 . . 74 20 76 44 116 384 366 Allied During Kill 1221 | . . . . . . . . . . . . . . . . . 15 . 5 . . . . 458 170 125 444 . . . . 4 . Successful Hack 386 | . 6 . 38 . 67 . . . . . 12 . 30 . . . . . . . . . 21 12 . . 13 . 108 . 58 21 . Select Force Hacks 50 | . . . . . . . . . . . . . . . . . . . . . . . . . . . 50 . . . . . . Disable Machine 855 | . . . . . . 210 . . . . . . 15 . . . . . . . . . 60 . . 90 60 15 60 30 120 195 . Destroy Structure 814 | . 1 . 24 . 17 12 . . . . 8 3 18 . . . . 8 . . . . 90 50 20 14 52 8 60 9 60 207 153 Partial Spotted 60 | . . . 15 . 15 . . . . . . . 15 . . . . . . . . . . . . . . . . . . 15 . Lose Combat Pursuer 600 | . . . 15 . 45 15 . . . 15 30 . . . . . 30 . 75 . . 30 45 60 . . . . . . 30 105 105 Influence Decreases 14263 | 15 387 61 857 214 703 478 381 124 . 230 240 158 248 . 139 66 349 84 232 38 12 178 641 1264 512 517 447 776 526 644 1063 1056 1623 Entered New Map 2930 | . . 12 26 75 6 252 143 19 . . . 101 . . . 66 . 18 . 8 . 8 . 182 150 113 17 305 2 198 . 36 1193 Time Decay 8700 | 15 367 49 524 139 537 206 238 105 . 210 230 37 238 . 139 . 329 66 212 30 12 170 485 502 262 404 230 451 514 406 593 770 230 Lost Part 630 | . 20 . 50 . 10 20 . . . 20 10 . 10 . . . . . . . . . 30 40 . . . . 10 . 20 190 200 Lost Ally 720 | . . . . . . . . . . . . 20 . . . . 20 . 20 . . . . 240 100 . 200 20 . 40 . 60 . Purge Threat 1283 | . . . 257 . 150 . . . . . . . . . . . . . . . . . 126 300 . . . . . . 450 . . Squads Dispatched 155 | . 4 . 3 . 6 2 . . . . 4 . 3 . . . . 1 . . . . 6 2 . . 5 5 6 1 8 53 46 Investigation 8 | . . . 1 . 3 . . . . . . . . . . . . . . . . . 1 . . . 3 . . . . . . Extermination 31 | . . . . . . 1 . . . . 3 . 2 . . . . 1 . . . . 4 . . . 1 . 4 . 4 10 1 Reinforcement 29 | . 4 . 2 . 1 . . . . . 1 . 1 . . . . . . . . . 1 2 . . 1 5 2 1 4 4 . Assault 85 | . . . . . 1 . . . . . . . . . . . . . . . . . . . . . . . . . . 39 45 Garrison 2 | . . . . . 1 1 . . . . . . . . . . . . . . . . . . . . . . . . . . . Intercept . | . . . . . . . . . . . . . . . . . . . . . . . . . . . . . . . . . . Searches Triggered . | . . . . . . . . . . . . . . . . . . . . . . . . . . . . . . . . . . Unchained Authorized 1 | . . . . . . . . . . . . . . . . . . . . . . . . . . . . . . . . . 1 Data Miner Redirects 13 | . . . . . . . . . . . . . . . . . . . . . . . 3 . . . . . . . . 10 . Construction Impeded 2 | . . . . . . . . . . . . . . . . . . . . . . . 1 . . . . . . . . 1 . Haulers Reinforced 2 | . . . . . . . . . . . . . . . . . . . . . . . . . . . . 1 . 1 . . . Active Scanning Responses . | . . . . . . . . . . . . . . . . . . . . . . . . . . . . . . . . . . Cargo Convoy Interrupts 1 | . . . . . . . . . . . . . . . . . . . . . . . 1 . . . . . . . . . . Stealth | -11 -10 -10 -9 -9 -8 -7 -7 -7 -7 -6 -6 -6 -6 -6 -6 -6 -5 -5 -5 -5 -5 -4 -4 -4 -4 -4 -4 -3 -3 -2 -2 -2 -1 --------- Run | Yrd Mat Min Mat Min Mat Fac Low Low Dat Pro Fac Was Fac Low Low Zio Pro Fac Upp Upp War Pro Fac Ext Cet Arc Hub Res Tes Res Qua Sec Acc Distress Signals 49 | . 3 . 3 . 1 1 . . . . . . . . . . . . . . 1 . 3 2 2 . 2 5 . 14 2 5 5 Communications Jammed 37 | . . . . . . . . . . . . . . . . . . . . . . . 3 . . . . . 6 . 3 25 . Distress Signals 30 | . . . . . . . . . . . . . . . . . . . . . . . 3 . . . . . 2 . 3 22 . Times Spotted 848 | . 27 3 41 2 49 9 4 1 . 10 14 8 7 . 5 . 15 1 12 . 8 6 36 34 10 11 25 12 37 4 44 182 231 Peak Tracking Total 43 | . 3 3 7 2 5 3 4 1 . 5 3 5 1 . 5 . 5 1 6 . 6 4 4 5 5 1 10 4 5 2 5 11 43 Tactical Retreats 34 | . . . 1 . 3 1 . . . 1 2 2 . . . . 1 . 5 . . 2 2 3 . . . . . . 2 5 4 Traps | -11 -10 -10 -9 -9 -8 -7 -7 -7 -7 -6 -6 -6 -6 -6 -6 -6 -5 -5 -5 -5 -5 -4 -4 -4 -4 -4 -4 -3 -3 -2 -2 -2 -1 ------- Run | Yrd Mat Min Mat Min Mat Fac Low Low Dat Pro Fac Was Fac Low Low Zio Pro Fac Upp Upp War Pro Fac Ext Cet Arc Hub Res Tes Res Qua Sec Acc Traps Triggered 17 | . . . 1 . 1 1 . . . . 1 . 3 . . . . . . . . . 2 1 . . . . 3 . 1 3 . Indirectly 3 | . . . . . . . . . . . . . . . . . . . . . . . 1 1 . . . . 1 . . . . Trap Hack Attempts . | . . . . . . . . . . . . . . . . . . . . . . . . . . . . . . . . . . Triggered . | . . . . . . . . . . . . . . . . . . . . . . . . . . . . . . . . . . Disarmed . | . . . . . . . . . . . . . . . . . . . . . . . . . . . . . . . . . . Reprogrammed . | . . . . . . . . . . . . . . . . . . . . . . . . . . . . . . . . . . Reused . | . . . . . . . . . . . . . . . . . . . . . . . . . . . . . . . . . . Traps Extracted . | . . . . . . . . . . . . . . . . . . . . . . . . . . . . . . . . . . Installed . | . . . . . . . . . . . . . . . . . . . . . . . . . . . . . . . . . . Triggered . | . . . . . . . . . . . . . . . . . . . . . . . . . . . . . . . . . . Machines | -11 -10 -10 -9 -9 -8 -7 -7 -7 -7 -6 -6 -6 -6 -6 -6 -6 -5 -5 -5 -5 -5 -4 -4 -4 -4 -4 -4 -3 -3 -2 -2 -2 -1 ---------- Run | Yrd Mat Min Mat Min Mat Fac Low Low Dat Pro Fac Was Fac Low Low Zio Pro Fac Upp Upp War Pro Fac Ext Cet Arc Hub Res Tes Res Qua Sec Acc Machines Disabled 63 | . . . . . . 14 . . . . . . 1 . . . . . . . . . 4 1 . 6 4 1 4 2 8 18 . Max in Single Turn 6 | . . . . . . 6 . . . . . . 1 . . . . . . . . . 2 1 . 1 1 1 1 2 2 2 . Garrison Access 6 | . . . . . 1 . . . . . . . . . . . . . . . . . . . . . . . . 3 1 1 . Network Hub 1 | . . . . . . . . . . . . . . . . . . . . . . . . . . . 1 . . . . . . Machines Repaired . | . . . . . . . . . . . . . . . . . . . . . . . . . . . . . . . . . . Machines Dismantled . | . . . . . . . . . . . . . . . . . . . . . . . . . . . . . . . . . . Machines Sabotaged 1 | . . . . . . . . . . . . . . . . . . . . . . . . . . . 1 . . . . . . Overloaded Fab Kills . | . . . . . . . . . . . . . . . . . . . . . . . . . . . . . . . . . . Hacking | -11 -10 -10 -9 -9 -8 -7 -7 -7 -7 -6 -6 -6 -6 -6 -6 -6 -5 -5 -5 -5 -5 -4 -4 -4 -4 -4 -4 -3 -3 -2 -2 -2 -1 --------- Run | Yrd Mat Min Mat Min Mat Fac Low Low Dat Pro Fac Was Fac Low Low Zio Pro Fac Upp Upp War Pro Fac Ext Cet Arc Hub Res Tes Res Qua Sec Acc Machines Accessed 97 | . 5 . 12 . 15 1 1 . 3 . 13 . 7 1 . . . . . 1 1 . 5 7 . . 3 3 8 1 7 3 . Terminals 62 | . 4 . 10 . 10 1 . . . . 6 . 5 . . . . . . . . . 4 6 . . 3 . 6 . 5 2 . Fabricators 3 | . . . . . . . . . . . 1 . 1 . . . . . . . . . . . . . . . 1 . . . . Repair Stations 4 | . . . . . 2 . . . . . 1 . . . . . . . . . . . 1 . . . . . . . . . . Recycling Units 9 | . 1 . 1 . 1 . . . . . 3 . . . . . . . . . . . . 1 . . . 2 . . . . . Scanalyzers 5 | . . . 1 . 1 . . . . . 1 . 1 . . . . . . . . . . . . . . . . . 1 . . Garrison Access 7 | . . . . . 1 . . . . . 1 . . . . . . . . . . . . . . . . 1 1 1 1 1 . Total Hacks 270 | . 17 . 42 . 51 3 1 . 26 . 24 . 14 1 . . . . . 1 1 . 16 18 . . 6 7 17 1 18 6 . Successful 147 | . 10 . 25 . 26 1 1 . 26 . 8 . 8 1 . . . . . 1 1 . 6 6 . . 4 1 9 1 11 1 . Failed 122 | . 7 . 17 . 24 2 . . . . 16 . 6 . . . . . . . . . 10 12 . . 2 6 8 . 7 5 . Catastrophic 20 | . . . 3 . 1 1 . . . . 6 . . . . . . . . . . . 1 1 . . 1 1 2 . 1 2 . Database Lockouts 1 | . . . . . 1 . . . . . . . . . . . . . . . . . . . . . . . . . . . . Manual 100 | . 9 . 19 . 17 3 . . . . 7 . 7 . . . . . . . 1 . 7 10 1 . 6 . 4 . 6 3 . Terminals 162 | . 14 . 36 . 24 3 . . . . 10 . 10 . . . . . . . . . 11 17 . . 6 . 13 . 14 4 . Fabricators 8 | . . . . . . . . . . . 3 . 2 . . . . . . . . . . . . . . . 3 . . . . Repair Stations 27 | . . . . . 21 . . . . . 1 . . . . . . . . . . . 5 . . . . . . . . . . Recycling Units 22 | . 3 . 4 . 3 . . . . . 5 . . . . . . . . . . . . 1 . . . 6 . . . . . Scanalyzers 13 | . . . 2 . 2 . . . . . 4 . 2 . . . . . . . . . . . . . . . . . 3 . . Garrison Access 8 | . . . . . 1 . . . . . 1 . . . . . . . . . . . . . . . . 1 1 1 1 2 . Terminal Hacks 73 | . 3 . 13 . 4 . 1 . 26 . . . 4 1 . . . . . 1 1 . 1 4 . . 2 . 5 . 7 . . Record 6 | . . . . . . . . . 6 . . . . . . . . . . . . . . . . . . . . . . . . Part Schematic 13 | . . . 2 . . . . . 11 . . . . . . . . . . . . . . . . . . . . . . . . Robot Schematic 6 | . . . . . . . . . 6 . . . . . . . . . . . . . . . . . . . . . . . . Robot Analysis 2 | . . . 1 . 1 . . . . . . . . . . . . . . . . . . . . . . . . . . . . Prototype ID Bank 7 | . . . 4 . . . . . 3 . . . . . . . . . . . . . . . . . . . . . . . . Open Door 5 | . . . . . . . 1 . . . . . . 1 . . . . . 1 1 . . . . . . . 1 . . . . Level Access Points 1 | . . . . . . . . . . . . . . . . . . . . . . . . . . . 1 . . . . . . Branch Access Points 2 | . . . 1 . . . . . . . . . 1 . . . . . . . . . . . . . . . . . . . . Terminal Index 1 | . . . . . . . . . . . . . . . . . . . . . . . . . . . . . 1 . . . . Alert Level 1 | . . . . . 1 . . . . . . . . . . . . . . . . . . . . . . . . . . . . Unreport Threat 10 | . . . 3 . 1 . . . . . . . . . . . . . . . . . 1 2 . . . . . . 3 . . Locate Traps 5 | . 1 . 1 . . . . . . . . . 2 . . . . . . . . . . . . . . . . . 1 . . Hauler Manifests 3 | . . . 1 . 1 . . . . . . . 1 . . . . . . . . . . . . . . . . . . . . Zone Layout 11 | . 2 . . . . . . . . . . . . . . . . . . . . . . 2 . . 1 . 3 . 3 . . Fabricator Hacks 2 | . . . . . . . . . . . 1 . . . . . . . . . . . . . . . . . 1 . . . . Network Status 2 | . . . . . . . . . . . 1 . . . . . . . . . . . . . . . . . 1 . . . . Repair Station Hacks 17 | . . . . . 14 . . . . . . . . . . . . . . . . . 3 . . . . . . . . . . Scan Component 10 | . . . . . 8 . . . . . . . . . . . . . . . . . 2 . . . . . . . . . . Repair 7 | . . . . . 6 . . . . . . . . . . . . . . . . . 1 . . . . . . . . . . Recycling Unit Hacks 7 | . 1 . 1 . 1 . . . . . 2 . . . . . . . . . . . . 1 . . . 1 . . . . . Retrieve Components 7 | . 1 . 1 . 1 . . . . . 2 . . . . . . . . . . . . 1 . . . 1 . . . . . Scanalyzer 11 | . . . 2 . 1 . . . . . 3 . 2 . . . . . . . . . . . . . . . . . 3 . . Retrieve Study 11 | . . . 2 . 1 . . . . . 3 . 2 . . . . . . . . . . . . . . . . . 3 . . Garrison Access Hacks 3 | . . . . . 1 . . . . . . . . . . . . . . . . . . . . . . . . 1 1 . . Seal Access 3 | . . . . . 1 . . . . . . . . . . . . . . . . . . . . . . . . 1 1 . . Unauthorized Hacks 34 | . 6 . 9 . 5 1 . . . . 2 . 2 . . . . . . . . . 2 1 . . 2 . 3 . . 1 . Terminals 31 | . 6 . 7 . 5 1 . . . . 2 . 2 . . . . . . . . . 2 1 . . 2 . 2 . . 1 . Assimilate 2 | . . . . . . . . . . . 1 . . . . . . . . . . . . . . . . . . . . 1 . Botnet 13 | . 2 . 2 . . 1 . . . . 1 . 2 . . . . . . . . . 2 1 . . . . 2 . . . . Skim 14 | . 4 . 5 . 5 . . . . . . . . . . . . . . . . . . . . . . . . . . . . Sabotage 2 | . . . . . . . . . . . . . . . . . . . . . . . . . . . 2 . . . . . . Fabricators 1 | . . . . . . . . . . . . . . . . . . . . . . . . . . . . . 1 . . . . Fabnet 1 | . . . . . . . . . . . . . . . . . . . . . . . . . . . . . 1 . . . . Repair Stations . | . . . . . . . . . . . . . . . . . . . . . . . . . . . . . . . . . . Recycling Units 2 | . . . 2 . . . . . . . . . . . . . . . . . . . . . . . . . . . . . . Reject 1 | . . . 1 . . . . . . . . . . . . . . . . . . . . . . . . . . . . . . Mask 1 | . . . 1 . . . . . . . . . . . . . . . . . . . . . . . . . . . . . . Scanalyzers . | . . . . . . . . . . . . . . . . . . . . . . . . . . . . . . . . . . Garrison Access . | . . . . . . . . . . . . . . . . . . . . . . . . . . . . . . . . . . Data Cores Recovered 1 | . . . . . . . . . . . . . . . . . . . . . . . . . . . 1 . . . . . . Used . | . . . . . . . . . . . . . . . . . . . . . . . . . . . . . . . . . . Hacking Detections 71 | . 5 . 10 . 13 1 . . . . 11 . 3 . . . . . . . . . 5 5 . . 2 3 5 . 5 3 . Full Trace Events 4 | . . . . . 2 . . . . . . . . . . . . . . . . . 1 . . . 1 . . . . . . Feedback Events . | . . . . . . . . . . . . . . . . . . . . . . . . . . . . . . . . . . Feedback Blocked . | . . . . . . . . . . . . . . . . . . . . . . . . . . . . . . . . . . Robot Schematics Acquired 8 | . . . . . . . . . 6 . . . . . . . . . . . . . . . . . . . 1 . . 1 . Robots Built . | . . . . . . . . . . . . . . . . . . . . . . . . . . . . . . . . . . Authchips . | . . . . . . . . . . . . . . . . . . . . . . . . . . . . . . . . . . Time . | . . . . . . . . . . . . . . . . . . . . . . . . . . . . . . . . . . Total Robot Build Rating . | . . . . . . . . . . . . . . . . . . . . . . . . . . . . . . . . . . Part Schematics Acquired 25 | . . . 2 . . . . . 11 . . . . . . . . . . . . . . . . . . . 4 . 3 5 . Parts Built . | . . . . . . . . . . . . . . . . . . . . . . . . . . . . . . . . . . Authchips . | . . . . . . . . . . . . . . . . . . . . . . . . . . . . . . . . . . Time . | . . . . . . . . . . . . . . . . . . . . . . . . . . . . . . . . . . Total Part Build Rating . | . . . . . . . . . . . . . . . . . . . . . . . . . . . . . . . . . . Part Studies Acquired 10 | . . . 2 . 1 . . . . . 3 . 1 . . . . . . . . . . . . . . . . . 3 . . Parts Repaired 7 | . . . . . 6 . . . . . . . . . . . . . . . . . 1 . . . . . . . . . . Time 332 | . . . . . 293 . . . . . . . . . . . . . . . . . 39 . . . . . . . . . . Parts Recycled . | . . . . . . . . . . . . . . . . . . . . . . . . . . . . . . . . . . Recycled Matter . | . . . . . . . . . . . . . . . . . . . . . . . . . . . . . . . . . . Retrieved Matter . | . . . . . . . . . . . . . . . . . . . . . . . . . . . . . . . . . . Retrieved Components 33 | . 10 . 7 . 1 . . . . . 3 . . . . . . . . . . . . 2 . . . 10 . . . . . Parts Scanalyzed . | . . . . . . . . . . . . . . . . . . . . . . . . . . . . . . . . . . Part Schematics Acquired . | . . . . . . . . . . . . . . . . . . . . . . . . . . . . . . . . . . Parts Damaged . | . . . . . . . . . . . . . . . . . . . . . . . . . . . . . . . . . . Bothacking | -11 -10 -10 -9 -9 -8 -7 -7 -7 -7 -6 -6 -6 -6 -6 -6 -6 -5 -5 -5 -5 -5 -4 -4 -4 -4 -4 -4 -3 -3 -2 -2 -2 -1 ------------ Run | Yrd Mat Min Mat Min Mat Fac Low Low Dat Pro Fac Was Fac Low Low Zio Pro Fac Upp Upp War Pro Fac Ext Cet Arc Hub Res Tes Res Qua Sec Acc Used RIF Installer . | . . . . . . . . . . . . . . . . . . . . . . . . . . . . . . . . . . Robots Hacked 11 | . . . . . . . . . . . . . . . . . . . . . . . . . . . . . . 6 . 5 . Non-combat . | . . . . . . . . . . . . . . . . . . . . . . . . . . . . . . . . . . Combat 11 | . . . . . . . . . . . . . . . . . . . . . . . . . . . . . . 6 . 5 . Robot Hacks Applied . | . . . . . . . . . . . . . . . . . . . . . . . . . . . . . . . . . . Relay Couplers Released 6 | . . . . . . . . . . . . . . . . . . . . . . . . . . . . . . 1 . 2 3 Machine Destruction 3 | . . . . . . . . . . . . . . . . . . . . . . . . . . . . . . 1 . 2 . Programmers 3 | . . . . . . . . . . . . . . . . . . . . . . . . . . . . . . . . . 3 Fabnet Peak Effective % 3 | . . . . . . . . . . . . . . . . . . . . . . . . . . . . . . 3 3 3 1 Autooverrided 11 | . . . . . . . . . . . . . . . . . . . . . . . . . . . . . . 6 . 5 . Robots Rewired 15 | . . . . . . . . . . . . . . . . . . . 2 . . . . 13 . . . . . . . . . Allies Hacked 2 | . . . . . . . . . . . 1 . . . . . . . . . . . . 1 . . . . . . . . . Hacks Repelled . | . . . . . . . . . . . . . . . . . . . . . . . . . . . . . . . . . . Allies | -11 -10 -10 -9 -9 -8 -7 -7 -7 -7 -6 -6 -6 -6 -6 -6 -6 -5 -5 -5 -5 -5 -4 -4 -4 -4 -4 -4 -3 -3 -2 -2 -2 -1 -------- Run | Yrd Mat Min Mat Min Mat Fac Low Low Dat Pro Fac Was Fac Low Low Zio Pro Fac Upp Upp War Pro Fac Ext Cet Arc Hub Res Tes Res Qua Sec Acc Total Allies 50 | . . . . . . . . . . . 1 1 . . . 2 . . 2 . . . . 28 5 . . . . 6 . 5 . Largest Group 15 | . . . . . . . . . . . 1 1 . . . 2 2 . 2 1 1 . . 15 15 13 12 1 . 1 . 1 . Highest-Rated Group 1000 | . . . . . . . . . . . 26 31 . . . 56 56 . 78 49 49 . . 684 1000 912 747 32 . 69 . 82 . Highest-Rated Ally 159 | . . . . . . . . . . . 26 31 . . . 28 28 . 49 49 49 . . 159 159 159 96 32 . 69 . 82 . Total Orders 3 | . . . . . . . . . . . . . . . . . . . . . 1 . . . . 2 . . . . . . . STAY 2 | . . . . . . . . . . . . . . . . . . . . . 1 . . . . 1 . . . . . . . FOLLOW 1 | . . . . . . . . . . . . . . . . . . . . . . . . . . 1 . . . . . . . Ally Attacks 301 | . . . . . . . . . . . . 9 . . . . 13 . 5 . 2 . . 109 57 22 59 . . 11 . 14 . Total Damage 9075 | . . . . . . . . . . . . 167 . . . . 199 . 148 . 106 . . 3515 1584 966 1674 . . 548 . 168 . Kills 40 | . . . . . . . . . . . . . . . . . 3 . 1 . . . . 15 5 4 10 . . 2 . . . Allies Corrupted 3 | . . . . . . . . . . . . . . . . . . . . . . . . . . . 3 . . . . . . Allies Melted 1 | . . . . . . . . . . . . . . . . . 1 . . . . . . . . . . . . . . . . Intel | -11 -10 -10 -9 -9 -8 -7 -7 -7 -7 -6 -6 -6 -6 -6 -6 -6 -5 -5 -5 -5 -5 -4 -4 -4 -4 -4 -4 -3 -3 -2 -2 -2 -1 ------- Run | Yrd Mat Min Mat Min Mat Fac Low Low Dat Pro Fac Was Fac Low Low Zio Pro Fac Upp Upp War Pro Fac Ext Cet Arc Hub Res Tes Res Qua Sec Acc Active Infowar (turns) 35119 | 24 525 2478 143 . 386 436 465 280 127 890 993 777 1579 567 780 1563 964 143 621 537 1540 545 1484 1277 577 963 491 1128 2014 1114 1984 5910 1814 Optics 12251 | . . . . . . . . . . . . . . . . . . . . . . . . 1269 577 963 491 1128 534 . . 5475 1814 Sensors 17971 | . . . . . . . 463 278 127 742 980 777 1564 567 771 1563 957 139 617 537 1187 537 1283 8 . 146 53 849 1778 44 1372 632 . Structural 19067 | . . . . . 386 436 462 279 127 889 992 777 1577 567 779 1544 959 140 616 537 1540 543 1286 7 . 145 58 867 1778 45 1393 338 . Seismic 3170 | 24 525 2478 143 . . . . . . . . . . . . . . . . . . . . . . . . . . . . . . Cloaking 2 | . . . . . . . . . . . . . . . . . . . . . 2 . . . . . . . . . . . . Jamming 6598 | . . . . . . . . . . . . . . . . . . . . . . . 763 . . . . . 1867 1114 1972 882 . Robot Analysis Total 2 | . . . 1 . 1 . . . . . . . . . . . . . . . . . . . . . . . . . . . . Derelict Logs Recovered 14 | . . 1 . 2 . . 2 1 . 1 . . . . 2 1 1 . 2 1 . . . . . . . . . . . . . Drone Launches . | . . . . . . . . . . . . . . . . . . . . . . . . . . . . . . . . . . Drone Recoveries . | . . . . . . . . . . . . . . . . . . . . . . . . . . . . . . . . . . Exploration | -11 -10 -10 -9 -9 -8 -7 -7 -7 -7 -6 -6 -6 -6 -6 -6 -6 -5 -5 -5 -5 -5 -4 -4 -4 -4 -4 -4 -3 -3 -2 -2 -2 -1 ------------- Run | Yrd Mat Min Mat Min Mat Fac Low Low Dat Pro Fac Was Fac Low Low Zio Pro Fac Upp Upp War Pro Fac Ext Cet Arc Hub Res Tes Res Qua Sec Acc Turns Passed 45415 | 115 952 2478 2007 1249 3623 437 500 293 127 1002 1443 777 1649 567 849 1563 1087 243 827 537 1540 593 1666 1344 577 963 491 1128 2017 1118 1988 7796 1869 Spaces Moved 18032 | 56 468 617 885 610 1394 194 282 169 79 331 693 148 852 332 458 972 477 114 365 331 837 315 730 621 186 204 242 606 876 472 888 1918 310 Core 20 | 20 . . . . . . . . . . . . . . . . . . . . . . . . . . . . . . . . . Treads 17564 | . 56 617 885 610 1394 194 282 169 79 331 693 148 852 332 458 972 477 114 365 331 837 315 730 621 186 204 242 606 876 472 888 1918 310 Legs 448 | 36 412 . . . . . . . . . . . . . . . . . . . . . . . . . . . . . . . . Wheels . | . . . . . . . . . . . . . . . . . . . . . . . . . . . . . . . . . . Hover . | . . . . . . . . . . . . . . . . . . . . . . . . . . . . . . . . . . Flight . | . . . . . . . . . . . . . . . . . . . . . . . . . . . . . . . . . . Fastest Speed 50 | 50 120 160 160 200 200 160 162 162 162 160 160 162 162 162 158 158 158 159 159 159 158 161 161 162 165 166 166 165 173 155 155 135 141 Average Speed 164 | 129 125 160 168 200 200 174 162 162 162 161 164 166 162 162 162 158 183 161 159 159 159 161 161 163 165 166 166 166 173 169 155 146 142 Slowest Speed 285 | 200 190 160 200 200 200 200 162 162 162 163 216 216 212 162 218 285 218 215 215 159 246 161 164 165 166 166 166 255 173 173 155 155 230 Overloaded Moves . | . . . . . . . . . . . . . . . . . . . . . . . . . . . . . . . . . . Propulsion Burnouts . | . . . . . . . . . . . . . . . . . . . . . . . . . . . . . . . . . . Robots Hopped . | . . . . . . . . . . . . . . . . . . . . . . . . . . . . . . . . . . Potential Cave-ins 6 | . . . . . . . . . . . . . . . . . 6 . . . . . . . . . . . . . . . . Cave-ins Triggered . | . . . . . . . . . . . . . . . . . . . . . . . . . . . . . . . . . . Teleports 1 | . . . . . . . . . . . . . . . . . . . . . . . . . . . . . . . . . 1 Exploration Rate (%) 55 | 4 71 97 83 98 90 8 59 34 69 50 19 71 32 51 56 85 56 6 51 67 85 51 25 76 68 84 26 18 84 22 95 92 6 Regions Visited 33 Branch Regions 21 Pre-discovered Areas 10 | . . . 2 1 2 . 1 . 1 1 . . . . . 2 . . . . . . . . . . . . . . . . . Known Exits Taken 27 | . . . 1 1 1 1 1 1 1 1 . . 1 1 1 1 1 1 1 1 1 1 1 1 1 1 1 1 1 1 1 . . Unknown Exits Taken 4 | 1 1 1 . . . . . . . . . . . . . . . . . . . . . . . . . . . . . 1 . Scrap Searched 24 | . . 1 . 2 . . 2 1 . 2 . . . 2 3 3 4 . 1 2 . 1 . . . . . . . . . . . Spaces Dug 157 | . . . . . 8 2 1 1 . 10 5 5 19 1 2 . 26 4 15 3 19 2 9 . . . . 2 8 1 6 8 . Terrain Destroyed 571 | . . . 16 . 8 19 18 1 . 30 5 5 19 1 4 . 30 4 18 3 22 4 57 24 7 9 13 6 44 2 30 88 84 Melee 64 | . . . . . 8 2 1 1 . 3 3 . 13 1 . . . 4 . . 19 . 9 . . . . . . . . . . Projectile 257 | . . . . . . . . . . . 2 5 6 . 2 . 26 . 18 3 3 4 13 24 6 9 13 6 22 1 30 44 20 AOE 221 | . . . 16 . . 17 17 . . 27 . . . . 2 . 4 . . . . . 35 . . . . . 20 1 . 42 40 Terrain Rammed . | . . . . . . . . . . . . . . . . . . . . . . . . . . . . . . . . . . Walls Destroyed . | . . . . . . . . . . . . . . . . . . . . . . . . . . . . . . . . . . Machines Disabled . | . . . . . . . . . . . . . . . . . . . . . . . . . . . . . . . . . . Actions | -11 -10 -10 -9 -9 -8 -7 -7 -7 -7 -6 -6 -6 -6 -6 -6 -6 -5 -5 -5 -5 -5 -4 -4 -4 -4 -4 -4 -3 -3 -2 -2 -2 -1 --------- Run | Yrd Mat Min Mat Min Mat Fac Low Low Dat Pro Fac Was Fac Low Low Zio Pro Fac Upp Upp War Pro Fac Ext Cet Arc Hub Res Tes Res Qua Sec Acc Total 30302 | 86 674 2089 1177 627 1981 251 308 178 78 705 906 602 1020 361 536 995 609 153 535 338 1008 369 1017 828 422 773 284 676 1180 758 1236 6124 1418 Wait 9032 | 14 71 1447 90 1 386 4 6 . . 305 108 408 57 23 38 7 55 12 79 . 101 22 109 62 190 501 3 3 110 231 136 3567 886 Move 18000 | 55 467 616 884 609 1393 193 281 168 78 330 693 147 851 331 457 971 476 113 364 330 836 314 729 620 185 203 241 605 875 471 887 1917 310 Hop . | . . . . . . . . . . . . . . . . . . . . . . . . . . . . . . . . . . Pick Up 222 | 5 14 7 21 6 15 7 2 . . 3 12 2 3 2 2 . 1 3 4 . 11 1 2 9 5 6 1 2 7 8 8 44 9 Fast Attach 165 | 7 3 . 7 1 12 3 2 . . 1 5 1 7 1 2 4 . . . 2 7 2 8 3 8 12 1 4 5 8 5 38 6 Attach 108 | . 4 . 9 . 3 5 1 . . 9 2 1 1 . 2 2 . 2 . . 1 . 4 7 . 4 . 2 1 2 2 24 20 Detach 17 | . . . . . . . . . . . . . . . . 2 . . . . 1 . 1 2 1 1 . . 1 . . 6 2 Swap 814 | 1 19 1 16 . 20 11 6 6 . 10 34 6 36 . 19 5 25 13 21 1 12 12 71 12 4 8 12 36 84 7 94 158 54 Drop 274 | . 16 4 28 2 25 6 1 . . . 9 1 9 3 1 4 1 1 4 2 14 3 5 10 14 14 2 9 10 13 9 49 5 Fire 1484 | 4 79 9 121 4 113 19 7 3 . 44 37 36 27 . 12 . 51 5 43 3 4 15 76 56 15 24 22 15 85 18 93 320 124 Melee 86 | . . . . . 8 3 2 1 . 3 6 . 25 1 3 . . 4 . . 20 . 10 . . . . . . . . . . Ram . | . . . . . . . . . . . . . . . . . . . . . . . . . . . . . . . . . . Kick 1 | . 1 . . . . . . . . . . . . . . . . . . . . . . . . . . . . . . . . Crush 33 | . . 5 1 4 6 . . . . . . . 4 . . . . . . . . . 2 2 . . 2 . 2 . 2 1 2 Escape Stasis . | . . . . . . . . . . . . . . . . . . . . . . . . . . . . . . . . . . Rewire 66 | . . . . . . . . . . . . . . . . . . . 20 . 1 . . 45 . . . . . . . . . Trap . | . . . . . . . . . . . . . . . . . . . . . . . . . . . . . . . . . . Miscellaneous . | . . . . . . . . . . . . . . . . . . . . . . . . . . . . . . . . . . Route ------- -11/Scrapyard -10/Materials (discovered 3 exits: *Mat x2 / [*Min]) -10/Mines (discovered 4 exits: *Mat x2 / [*Exi] / [*Sub]) -9/Materials (discovered 6 exits: *Mat x3 / *Min / *Sto x2) -9/Mines (discovered 2 exits: *Mat x2) -8/Materials (discovered 3 exits: *Fac x3) -7/Factory -7/Lower Caves -7/Lower Caves -7/Data Miner -6/Proximity Caves -6/Factory -6/Waste -6/Factory (discovered 2 exits: *Low x2) -6/Lower Caves -6/Lower Caves -6/Zion (discovered 2 exits: Dee / *Pro) -5/Proximity Caves -5/Factory (discovered 2 exits: *Upp x2) -5/Upper Caves -5/Upper Caves -5/Warlord -4/Proximity Caves -4/Factory (discovered 2 exits: *Res / *Ext) -4/Extension (discovered 2 exits: *Res / *Cet) -4/Cetus (discovered 2 exits: *Res / *Arc) -4/Archives (discovered 3 exits: *Res / *Hub x2) -4/Hub_04(d) (discovered 4 exits: *Res x4) -3/Research -3/Testing -2/Research -2/Quarantine (discovered 3 exits: [*Acc] / *Sec / [*Frg]) -2/Section 7 -1/Access History --------- Turn | Location | Event 21 | -11/Scrapyard | Discovered new exit (range 16) 116 | -11/Scrapyard | Entered Materials 301 | -10/Materials | Build established: Mutant 456 | -10/Materials | Discovered new exit (range 13) 592 | -10/Materials | Discovered new exit (range 15) 748 | -10/Materials | Core integrity fell below 50% 961 | -10/Materials | Discovered new exit (range 8) 1068 | -10/Materials | Entered Mines 1149 | -10/Mines | Discovered new exit (range 10) 1242 | -10/Mines | Learned location of 1 exit from Materials 1364 | -10/Mines | Received a Rocket Launcher from a helpful Derelict 1478 | -10/Mines | Assembled infested the area 3355 | -10/Mines | Discovered new exit (range 9) 3391 | -10/Mines | Discovered new exit (range 5) 3461 | -10/Mines | Deemed a non-threat by the Exiles lab entrance 3461 | -10/Mines | Discovered new exit (range 5) 3546 | -10/Mines | Entered Materials 3546 | -9/Materials | Evolved 2 slots: Propulsion x1, Weapon x1 3547 | -9/Materials | Identified exit to Materials 4024 | -9/Materials | Build established: Scavenger-Tank 4448 | -9/Materials | Discovered new exit (range 13) 4521 | -9/Materials | Identified exit to Mines 4521 | -9/Materials | Identified exit to Storage 4936 | -9/Materials | Learned location of Recycling (-9) 5007 | -9/Materials | Learned location of 1 exit from Storage 5081 | -9/Materials | Destroyed 7 combat bots 5135 | -9/Materials | Discovered exit to Materials (range 14) 5269 | -9/Materials | Learned Storage trap positions 5327 | -9/Materials | Learned location of 2 exits from Materials 5368 | -9/Materials | Build established: Tank 5553 | -9/Materials | Entered Mines 5648 | -9/Mines | Discovered exit to Materials (range 5) 5700 | -9/Mines | A weapon hastily lodged in a ceiling crevice suddenly fell to the ground 6091 | -9/Mines | Learned Materials garrison access intel 6202 | -9/Mines | Learned location of Storage (-9) 6449 | -9/Mines | Learned Materials terminal intel 6695 | -9/Mines | Discovered exit to Materials (range 10) 6731 | -9/Mines | Joined a pair of Derelicts in attacking an 0b10 outpost 6802 | -9/Mines | Entered Materials 6802 | -8/Materials | Evolved 2 slots: Utility x2 6803 | -8/Materials | Identified exit to Factory 6804 | -8/Materials | Loaded intel: 12 terminal locations 6805 | -8/Materials | Loaded intel: 1 garrison access location 6886 | -8/Materials | Garrison activated, responded to threat 7116 | -8/Materials | Build established: Gunner 7761 | -8/Materials | Central database locked down 7876 | -8/Materials | Repaired Imp. Assault Rifle 7929 | -8/Materials | Repaired Imp. Assault Rifle 7962 | -8/Materials | Repaired Med. Armor Plating 8008 | -8/Materials | Repaired Gauss Rifle 8362 | -8/Materials | Repaired Broken Imp. Assault Rifle 8741 | -8/Materials | Build established: Scavenger-Mutant 9147 | -8/Materials | Build established: Gunner 9200 | -8/Materials | Discovered exit to Factory (range 10) 9251 | -8/Materials | Learned Storage stockpile data 9307 | -8/Materials | Learned Storage stockpile data 9352 | -8/Materials | Learned Storage security intel 9388 | -8/Materials | Learned location of Zion (-6) 9416 | -8/Materials | Learned 4 Recycling zone layouts 9436 | -8/Materials | Learned 2 Storage zone layouts 9506 | -8/Materials | Learned Factory emergency access door positions 10278 | -8/Materials | Repaired Imp. Assault Rifle 10402 | -8/Materials | First assault squad dispatched 10425 | -8/Materials | Entered Factory 10425 | -7/Factory | Evolved 2 slots: Propulsion x1, Utility x1 10816 | -7/Factory | Discovered new exit (range 12) 10839 | -7/Factory | Identified exit to Lower Caves 10849 | -7/Factory | Garrison activated, responded to threat 10862 | -7/Factory | Entered Lower Caves 10938 | -7/Lower Caves | Found Alien Artifact 10938 | -7/Lower Caves | Identified Core Expander 10938 | -7/Lower Caves | Installed Core Expander, added new Utility slot 11015 | -7/Lower Caves | Learned Factory stockpile data 11232 | -7/Lower Caves | Build established: Scavenger-Assassin 11347 | -7/Lower Caves | Discovered new exit (range 9) 11360 | -7/Lower Caves | Identified exit to Lower Caves 11362 | -7/Lower Caves | Entered another Lower Caves area 11422 | -7/Lower Caves | Learned location of 1 exit from Factory 11601 | -7/Lower Caves | Encountered a Warlord checkpoint 11629 | -7/Lower Caves | Discovered new exit (range 10) 11645 | -7/Lower Caves | Identified exit to Data Miner 11655 | -7/Lower Caves | Entered Data Miner 11655 | -7/Data Miner | Discovered new exit (range 7) 11686 | -7/Data Miner | Met Data Miner 11714 | -7/Data Miner | Learned location of Section 7 (-2) 11714 | -7/Data Miner | Acquired the access code to Warlord's prototype stash 11745 | -7/Data Miner | Received God Mode back door access code from Data Miner 11780 | -7/Data Miner | Identified exit to Proximity Caves 11782 | -7/Data Miner | Entered Proximity Caves 11863 | -6/Proximity Caves | Found Imp. Powered Armor 12225 | -6/Proximity Caves | Spotted B-75 Beast 12301 | -6/Proximity Caves | Destroyed B-75 Beast 12306 | -6/Proximity Caves | Lost 8 parts (1p3n2u2w) 12697 | -6/Proximity Caves | Build established: Skirmisher 12756 | -6/Proximity Caves | Discovered new exit (range 8) 12778 | -6/Proximity Caves | Identified exit to Factory 12784 | -6/Proximity Caves | Entered Factory 12784 | -6/Factory | Evolved 2 slots: Power x1, Utility x1 12785 | -6/Factory | Identified exit to Lower Caves 13865 | -6/Factory | Build established: Scientist-Skirmisher 14227 | -6/Factory | Sucked down chute 14227 | -6/Factory | Entered Waste 14228 | -6/Waste | Met a frightened Derelict 14284 | -6/Waste | Spotted C-40 Crusher 14295 | -6/Waste | Spotted C-40 Crusher 14301 | -6/Waste | Spotted C-40 Crusher 14372 | -6/Waste | Spotted C-40 Crusher 14405 | -6/Waste | Destroyed C-40 Crusher 14439 | -6/Waste | Spotted C-40 Crusher 14615 | -6/Waste | Spotted C-40 Crusher 14616 | -6/Waste | Crushed by Compactor (1 part destroyed, 1 dropped) 14848 | -6/Waste | Destroyed C-40 Crusher 14919 | -6/Waste | Build established: Skirmisher 14979 | -6/Waste | Discovered new exit (range 16) 15002 | -6/Waste | Identified exit to Factory 15004 | -6/Waste | Entered Factory 15306 | -6/Factory | Build established: Scavenger-Assassin 16060 | -6/Factory | Build established: Scavenger-Skirmisher 16653 | -6/Factory | Entered Lower Caves 16664 | -6/Lower Caves | Encountered a Warlord checkpoint 16833 | -6/Lower Caves | Build established: Scavenger-Assassin 17089 | -6/Lower Caves | Discovered new exit (range 10) 17219 | -6/Lower Caves | Identified exit to Lower Caves 17220 | -6/Lower Caves | Entered another Lower Caves area 17623 | -6/Lower Caves | Build established: Skirmisher 17789 | -6/Lower Caves | Learned Factory terminal intel 17906 | -6/Lower Caves | Learned location of 1 exit from Factory 18017 | -6/Lower Caves | Discovered new exit (range 6) 18068 | -6/Lower Caves | Identified exit to Zion 18069 | -6/Lower Caves | Entered Zion 18132 | -6/Zion | System corruption reached 10% 18144 | -6/Zion | System corruption cleaned by Quarantine Array 18180 | -6/Zion | Identified exit to Deep Caves 18207 | -6/Zion | Discovered new exit (range 15) 18400 | -6/Zion | Learned location of Quarantine (-2) 18437 | -6/Zion | Build established: Scavenger-Assassin 18714 | -6/Zion | Met Imprinter 19043 | -6/Zion | Learned location of Warlord (-5) 19068 | -6/Zion | Visited the Megawrench Repair Shop 19096 | -6/Zion | Gained Derelict followers 19417 | -6/Zion | Megawrench repaired 12 parts 19624 | -6/Zion | Identified exit to Proximity Caves 19632 | -6/Zion | Entered Proximity Caves 19632 | -5/Proximity Caves | Accompanied by 2 allies 20047 | -5/Proximity Caves | Build established: Scavenger-Skirmisher 20261 | -5/Proximity Caves | Learned Factory garrison access intel 20330 | -5/Proximity Caves | Attracted the attention of an 0b10 checkpoint 20708 | -5/Proximity Caves | Discovered new exit (range 6) 20716 | -5/Proximity Caves | Identified exit to Factory 20719 | -5/Proximity Caves | Entered Factory 20719 | -5/Factory | Evolved 2 slots: Propulsion x1, Utility x1 20720 | -5/Factory | Identified exit to Upper Caves 20721 | -5/Factory | Loaded intel: 26 terminal locations 20722 | -5/Factory | Loaded intel: 4 garrison access locations 20884 | -5/Factory | Discovered exit to Upper Caves (range 15) 20962 | -5/Factory | Entered Upper Caves 21270 | -5/Upper Caves | Attracted the attention of an 0b10 outpost 21554 | -5/Upper Caves | Learned 8 Factory zone layouts 21684 | -5/Upper Caves | Learned Factory terminal intel 21780 | -5/Upper Caves | Discovered new exit (range 6) 21788 | -5/Upper Caves | Identified exit to Upper Caves 21789 | -5/Upper Caves | Entered another Upper Caves area 21789 | -5/Upper Caves | Accompanied by 1 ally 21812 | -5/Upper Caves | Learned 4 Factory zone layouts 22265 | -5/Upper Caves | Discovered new exit (range 5) 22324 | -5/Upper Caves | Identified exit to Warlord 22326 | -5/Upper Caves | Entered Warlord 22326 | -5/Warlord | Accompanied by 1 ally 22380 | -5/Warlord | System corruption cleaned by Quarantine Array 22794 | -5/Warlord | Opened Warlord's prototype stash 22801 | -5/Warlord | Found Prototype Device 22801 | -5/Warlord | Identified Exp. Cloaking Device 22818 | -5/Warlord | Found Prototype Reactor 22831 | -5/Warlord | Found Prototype Processor 22865 | -5/Warlord | Received a Watcher feed algorithm from an ecstatic Tinkerer 22975 | -5/Warlord | Met Warlord 23000 | -5/Warlord | Warlord's base attacked by MAIN.C 23127 | -5/Warlord | Build established: Scavenger-Assassin 23239 | -5/Warlord | Lost 5 allies 23336 | -5/Warlord | Found Prototype Energy Gun 23336 | -5/Warlord | Identified Vortex Shotgun 23350 | -5/Warlord | Warlord forces counterattacked 23675 | -5/Warlord | Warlord base infiltrated, sounded retreat 23676 | -5/Warlord | Enhanced Grunt warped into view 23676 | -5/Warlord | Enhanced Grunt warped into view 23676 | -5/Warlord | Enhanced Grunt warped into view 23676 | -5/Warlord | Enhanced Demolisher warped into view 23676 | -5/Warlord | Enhanced Demolisher warped into view 23676 | -5/Warlord | Enhanced Demolisher warped into view 23808 | -5/Warlord | Spotted Striker 23840 | -5/Warlord | Discovered new exit (range 15) 23855 | -5/Warlord | Lost 7 allies 23861 | -5/Warlord | Identified exit to Proximity Caves 23866 | -5/Warlord | Entered Proximity Caves 23902 | -4/Proximity Caves | Spotted B-86 Titan 24306 | -4/Proximity Caves | Discovered new exit (range 5) 24457 | -4/Proximity Caves | Identified exit to Factory 24459 | -4/Proximity Caves | Entered Factory 24459 | -4/Factory | Evolved 2 slots: Propulsion x1, Utility x1 24460 | -4/Factory | Identified Exp. Target Analyzer 24461 | -4/Factory | Loaded intel: 27 terminal locations 25133 | -4/Factory | Repaired Broken KE Penetrator 25374 | -4/Factory | Discovered new exit (range 6) 25382 | -4/Factory | Identified exit to Research 25472 | -4/Factory | Cargo convoy interrupted 25508 | -4/Factory | Incoming assault squad redirected 25665 | -4/Factory | Incoming investigation squad redirected 25719 | -4/Factory | Incoming assault squad redirected 26117 | -4/Factory | Discovered new exit (range 6) 26123 | -4/Factory | Identified exit to Extension 26125 | -4/Factory | Entered Extension 26237 | -4/Extension | Build established: Scavenger-Tank 26355 | -4/Extension | Rescued a captive Derelict 26357 | -4/Extension | Rescued a captive Derelict 26437 | -4/Extension | P-70 Sage assimilated allied 0C-JCG(l) 26452 | -4/Extension | Rescued a captive Derelict 26453 | -4/Extension | Rescued a captive Derelict 26474 | -4/Extension | Rescued a captive Derelict 26475 | -4/Extension | Rescued a captive Derelict 26487 | -4/Extension | Rescued a captive Derelict 26489 | -4/Extension | Rescued a captive Derelict 26502 | -4/Extension | Rescued a captive Derelict 26630 | -4/Extension | Spotted B-86 Titan 26649 | -4/Extension | Rescued a captive Derelict 26650 | -4/Extension | Rescued a captive Derelict 26658 | -4/Extension | Spotted B-86 Titan 26674 | -4/Extension | Allies destroyed B-86 Titan 26690 | -4/Extension | Lost 8 allies 26693 | -4/Extension | Destroyed B-86 Titan 26922 | -4/Extension | Rescued a captive Derelict 26930 | -4/Extension | Rescued a captive Derelict 26933 | -4/Extension | Rescued a captive Derelict 27363 | -4/Extension | Rescued A7 27408 | -4/Extension | Discovered exit to Research (range 10) 27410 | -4/Extension | Discovered new exit (range 6) 27420 | -4/Extension | Found Quantum Capacitor 27424 | -4/Extension | Identified exit to Cetus 27469 | -4/Extension | Entered Cetus 27469 | -4/Cetus | Accompanied by 14 allies (A7) 27474 | -4/Cetus | Acquired a Cetus Manufacturing Module code from A7 27487 | -4/Cetus | Spotted Cetus Guard 27487 | -4/Cetus | Spotted Cetus Guard 27488 | -4/Cetus | Destroyed Cetus Guard 27490 | -4/Cetus | Spotted Cetus Guard 27495 | -4/Cetus | Spotted Cetus Guard 27502 | -4/Cetus | Allies destroyed Cetus Guard 27505 | -4/Cetus | Allies destroyed Cetus Guard 27507 | -4/Cetus | Destroyed Cetus Guard 27536 | -4/Cetus | Lost 4 allies 27621 | -4/Cetus | Started Cetus Manufacturing Module 27646 | -4/Cetus | Manufactured an Enhanced Grunt 27671 | -4/Cetus | Manufactured an Enhanced Grunt 27696 | -4/Cetus | Manufactured an Enhanced Grunt 27721 | -4/Cetus | Manufactured an Enhanced Grunt 27746 | -4/Cetus | Manufactured an Enhanced Grunt 27841 | -4/Cetus | Discovered new exit (range 20) 27872 | -4/Cetus | Spotted Cetus Guard 27873 | -4/Cetus | Spotted Cetus Guard 27875 | -4/Cetus | Spotted Cetus Guard 27881 | -4/Cetus | Spotted Cetus Guard 27891 | -4/Cetus | Destroyed Cetus Guard 27897 | -4/Cetus | Destroyed Cetus Guard 27901 | -4/Cetus | Destroyed Cetus Guard 27906 | -4/Cetus | Allies destroyed Cetus Guard 27909 | -4/Cetus | Discovered exit to Research (range 19) 27926 | -4/Cetus | Met Revision 17 27992 | -4/Cetus | Identified exit to Archives 28046 | -4/Cetus | Entered Archives 28046 | -4/Archives | Accompanied by 13 allies (A7) 28317 | -4/Archives | Discovered new exit (range 17) 28550 | -4/Archives | Discovered new exit (range 18) 28907 | -4/Archives | Discovered exit to Research (range 20) 28988 | -4/Archives | Identified exit to Hub_04(d) 29009 | -4/Archives | Entered Hub_04(d) 29009 | -4/Hub_04(d) | Accompanied by 12 allies 29267 | -4/Hub_04(d) | Spotted B-86 Titan 29289 | -4/Hub_04(d) | Destroyed B-86 Titan 29480 | -4/Hub_04(d) | Network Hub disabled 29490 | -4/Hub_04(d) | Spotted Lightning 29490 | -4/Hub_04(d) | Spotted Lightning 29492 | -4/Hub_04(d) | Spotted Lightning 29499 | -4/Hub_04(d) | Spotted Lightning 29500 | -4/Hub_04(d) | Entered Research 29500 | -3/Research | Accompanied by 1 ally 29500 | -3/Research | Evolved 2 slots: Utility x2 29522 | -3/Research | Lost 8 allies 29700 | -3/Research | Revision forces began assault on 0b10 29786 | -3/Research | Met up with Revision 17++ 30166 | -3/Research | Spotted B-86 Titan 30200 | -3/Research | Research terminal network offline 30474 | -3/Research | Discovered new exit (range 12) 30546 | -3/Research | Identified exit to Testing 30628 | -3/Research | Entered Testing 30874 | -3/Testing | Found Gamma Bomb Array 31005 | -3/Testing | Found Prototype Device 31005 | -3/Testing | Identified 2N-1CE's Frost Array 31030 | -3/Testing | Build established: Scavenger-Skirmisher 31106 | -3/Testing | Discovered new exit (range 19) 31165 | -3/Testing | Found Prototype Protection 31165 | -3/Testing | Identified SHELL Armor 31225 | -3/Testing | Identified exit to Research 31358 | -3/Testing | System corruption reached 10% 32164 | -3/Testing | Scanned by Researcher 32645 | -3/Testing | Entered Research 32645 | -2/Research | Warlord forces began assault on 0b10 32645 | -2/Research | Evolved 2 slots: Power x1, Weapon x1 32715 | -2/Research | Lost 4 allies 32755 | -2/Research | Research machine network offline 32761 | -2/Research | Met up with Warlord 32839 | -2/Research | Lost 3 allies 32981 | -2/Research | Build established: Scavenger-Tank 33162 | -2/Research | Borebot progress halted 33167 | -2/Research | Spotted B-90 Cyclops 33173 | -2/Research | Discovered new exit (range 12) 33190 | -2/Research | Identified exit to Quarantine 33210 | -2/Research | Destroyed B-90 Cyclops 33447 | -2/Research | Found Prototype Processor 33447 | -2/Research | Identified Exp. Targeting Computer 33465 | -2/Research | Found Prototype Processor 33465 | -2/Research | Identified Exp. Core Analyzer 33528 | -2/Research | Borebot progress halted 33763 | -2/Research | Entered Quarantine 33775 | -2/Quarantine | Found Alien Artifact 34001 | -2/Quarantine | Cryocooling Duct disabled 34016 | -2/Quarantine | Ambient heat levels rising (+20) 34016 | -2/Quarantine | Non-combat units ordered to evacuate 34173 | -2/Quarantine | System corruption reached 10% 34307 | -2/Quarantine | Discovered new exit (range 14) 34515 | -2/Quarantine | Build established: Scavenger-Skirmisher 35331 | -2/Quarantine | Found Alien Artifact 35635 | -2/Quarantine | Spotted Fortress 35741 | -2/Quarantine | Discovered new exit (range 5) 35741 | -2/Quarantine | Discovered new exit (range 6) 35746 | -2/Quarantine | Identified exit to Section 7 35751 | -2/Quarantine | Entered Section 7 35755 | -2/Section 7 | Identified Core Reset Matrix 35755 | -2/Section 7 | Identified Subatomic Replicator 35755 | -2/Section 7 | Used Core Reset Matrix 35759 | -2/Section 7 | Detected hypermatrix surge 35759 | -2/Section 7 | Sensed 19 artifacts in vicinity 35783 | -2/Section 7 | Found Integrated Mediator 35783 | -2/Section 7 | Installed Integrated Mediator, increased core attachment efficiency 36069 | -2/Section 7 | Spotted S7 Guard 36099 | -2/Section 7 | Destroyed S7 Guard 36174 | -2/Section 7 | Found Integrated Thermoelectric Network 36174 | -2/Section 7 | Installed Integrated Thermoelectric Network, gained heat-energy exchange potential 36376 | -2/Section 7 | Local machine network offline 36553 | -2/Section 7 | Spotted Alpha 7 36652 | -2/Section 7 | Spotted Alpha 7 36715 | -2/Section 7 | Destroyed Alpha 7 36723 | -2/Section 7 | Destroyed Alpha 7 36751 | -2/Section 7 | First assault squad dispatched 36752 | -2/Section 7 | Lost 5 parts (1p1u3w) 36772 | -2/Section 7 | Incoming assault squad redirected 36796 | -2/Section 7 | Spotted S7 Guard 36833 | -2/Section 7 | Destroyed S7 Guard 36871 | -2/Section 7 | Found Core Membrane 36871 | -2/Section 7 | Installed Core Membrane, gained immunity to corruption 37015 | -2/Section 7 | Spotted B-99 Colossus 37056 | -2/Section 7 | Spotted Executioner 37056 | -2/Section 7 | Spotted Executioner 37097 | -2/Section 7 | Destroyed Executioner 37116 | -2/Section 7 | Destroyed Executioner 37131 | -2/Section 7 | Found Exp. Targeting Computer 37170 | -2/Section 7 | Door terminal overloaded 37170 | -2/Section 7 | Door terminal overloaded 37184 | -2/Section 7 | Found Transdimensional Reconstructor 37265 | -2/Section 7 | Build established: Scavenger-Gunner 37310 | -2/Section 7 | Found Sigix Sheargun 37316 | -2/Section 7 | Found Sigix Sheargun 37322 | -2/Section 7 | Spotted Striker 37322 | -2/Section 7 | Spotted Striker 37348 | -2/Section 7 | Spotted Striker 37348 | -2/Section 7 | Spotted Striker 37350 | -2/Section 7 | Destroyed Striker 37371 | -2/Section 7 | Destroyed Striker 37378 | -2/Section 7 | Destroyed Striker 37391 | -2/Section 7 | Destroyed Striker 37531 | -2/Section 7 | Incoming assault squad redirected 37777 | -2/Section 7 | Incoming assault squad redirected 38528 | -2/Section 7 | Incoming assault squad redirected 39025 | -2/Section 7 | Incoming assault squad redirected 39030 | -2/Section 7 | Incoming assault squad redirected 39269 | -2/Section 7 | Incoming assault squad redirected 39273 | -2/Section 7 | Incoming assault squad redirected 39775 | -2/Section 7 | Incoming assault squad redirected 40023 | -2/Section 7 | Incoming assault squad redirected 40492 | -2/Section 7 | High security lockdown imminent 40572 | -2/Section 7 | High security lockdown engaged 40725 | -2/Section 7 | Found Prototype Launcher 40762 | -2/Section 7 | Build established: Scavenger-Tank 40888 | -2/Section 7 | Destroyed Striker 40889 | -2/Section 7 | Spotted Executioner 40899 | -2/Section 7 | Destroyed Executioner 40920 | -2/Section 7 | Destroyed 12 combat bots 41086 | -2/Section 7 | Destroyed Executioner 41147 | -2/Section 7 | Destroyed 17 combat bots 41213 | -2/Section 7 | Sterilization system engaged 41213 | -2/Section 7 | Non-combat units ordered to evacuate 41229 | -2/Section 7 | Destroyed Striker 41259 | -2/Section 7 | Destroyed 14 combat bots 41313 | -2/Section 7 | Combat units ordered to evacuate 41513 | -2/Section 7 | Ambient heat levels rising (+10) 41642 | -2/Section 7 | Used Subatomic Replicator to replicate Sigix Sheargun 41663 | -2/Section 7 | Ambient heat levels rising (+10) 41685 | -2/Section 7 | Spotted Executioner 41685 | -2/Section 7 | Spotted Executioner 41695 | -2/Section 7 | Destroyed Executioner 41698 | -2/Section 7 | Destroyed Executioner 41714 | -2/Section 7 | Found Exp. Core Analyzer 41813 | -2/Section 7 | Ambient heat levels rising (+10) 41951 | -2/Section 7 | Found LRC Energy Well 41951 | -2/Section 7 | Installed LRC Energy Well, increased energy storage capacity (+250) 41954 | -2/Section 7 | Found LRC Armor 41954 | -2/Section 7 | Installed LRC Armor, increased core integrity (+250) 41963 | -2/Section 7 | Ambient heat levels rising (+10) 42080 | -2/Section 7 | Destroyed B-99 Colossus 42108 | -2/Section 7 | Found Prototype Ballistic Gun 42112 | -2/Section 7 | Found Prototype Ballistic Gun 42113 | -2/Section 7 | Ambient heat levels rising (+10) 42151 | -2/Section 7 | Identified Multirail (x2) 42152 | -2/Section 7 | Identified Hellfire Missile Launcher 42255 | -2/Section 7 | Build established: Alien-Gunner 42263 | -2/Section 7 | Ambient heat levels rising (+10) 42322 | -2/Section 7 | Spotted S7 Guard 42340 | -2/Section 7 | Destroyed S7 Guard 42413 | -2/Section 7 | Ambient heat levels rising (+10) 42563 | -2/Section 7 | Ambient heat levels rising (+10) 42713 | -2/Section 7 | Ambient heat levels rising (+10) 42863 | -2/Section 7 | Ambient heat levels rising (+10) 43013 | -2/Section 7 | Ambient heat levels rising (+10) 43043 | -2/Section 7 | Found Prototype Device 43044 | -2/Section 7 | Identified Exp. Shield Generator 43163 | -2/Section 7 | Ambient heat levels rising (+10) 43313 | -2/Section 7 | Ambient heat levels rising (+10) 43345 | -2/Section 7 | Discovered new exit (range 16) 43392 | -2/Section 7 | Found Integrated Dissipator 43393 | -2/Section 7 | Installed Integrated Dissipator, increased core heat dissipation (+20) 43463 | -2/Section 7 | Ambient heat levels rising (+10) 43547 | -2/Section 7 | Entered Access 43547 | -1/Access | Evolved 2 slots: Weapon x2 43739 | -1/Access | Unchained authorized (6S-H0T) 43797 | -1/Access | First assault squad dispatched 43841 | -1/Access | Build established: Alien-Executioner 44031 | -1/Access | High security lockdown imminent 44111 | -1/Access | High security lockdown engaged 44335 | -1/Access | Destroyed 8 combat bots 44742 | -1/Access | Spotted Executioner 44753 | -1/Access | Destroyed Executioner 44756 | -1/Access | Spotted Executioner 44763 | -1/Access | Destroyed Executioner 44772 | -1/Access | Destroyed Executioner 44802 | -1/Access | Destroyed 17 combat bots 44882 | -1/Access | Destroyed Striker 44928 | -1/Access | Destroyed 17 combat bots 45088 | -1/Access | Destroyed Executioner 45268 | -1/Access | Destroyed Executioner 45269 | -1/Access | Spotted Executioner 45282 | -1/Access | Destroyed Executioner 45282 | -1/Access | Destroyed Executioner 45309 | -1/Access | Spotted Striker 45309 | -1/Access | Spotted Striker 45319 | -1/Access | Destroyed Striker 45321 | -1/Access | Spotted Striker 45328 | -1/Access | Spotted Striker 45328 | -1/Access | Spotted Executioner 45332 | -1/Access | Spotted Executioner 45332 | -1/Access | Spotted Striker 45332 | -1/Access | Spotted Executioner 45340 | -1/Access | Destroyed Striker 45349 | -1/Access | Spotted Executioner 45349 | -1/Access | Destroyed Executioner 45349 | -1/Access | Destroyed Striker 45350 | -1/Access | Spotted Striker 45354 | -1/Access | Destroyed Executioner 45364 | -1/Access | Destroyed Striker 45368 | -1/Access | Spotted Investigator 45393 | -1/Access | Warped through subspace 45403 | -1/Access | Spotted Striker 45403 | -1/Access | Spotted Striker 45413 | -1/Access | Spotted Executioner 45416 | -1/Access | Self-destructed Last Messages --------------- 45408_ G-73 Enforcer destroyed. 45410_ The unstable cave ceiling collapses. 45410_ Destroyed Lgt. Quantum Reactor. 45410_ G-73 Enforcer destroyed. 45410_ P-80 Master destroyed. 45410_ Destroyed Prototype Device. 45410_ Destroyed Unknown Wheel. 45410_ R-10 Processor destroyed. 45412_ Critical hit (Impale). 45413_ C-45 Heavy ARC bursts open, deploying its payload. 45413_ Executioner unfolds itself. 45413_ P-80 Master unfolds itself. 45413_ I-47 Archangel unfolds itself. 45413_ Slug penetrates Earth. 45413_ G-73 Enforcer destroyed. 45413_ M-36 Artificer destroyed. 45414_ U-05 Engineer lays Concrete. 45416_ The unstable cave ceiling collapses. 45416_ Penetrated by Slug. Map ----- +----------------------------------------------------+ | ???????????????????????????????????????# #? | | ???????????????????????????????????????# = #? | | ???????????????????????????????????????# #? | | ???????????????????????????????????????# "? | | ???????????????????????????????????????# "? | | ???????????????????????????????????????# #? | | ???????????????????????????????????????# "? | | ???????????????????????????????????????# %? | | ???????????????????? ###################+###%# | | ???????????????????# ] /*# | | ???????????????????+ " /!# | | ???????????????????# [! % ![# | | ???????????????????? ############%####%#####%# | | ???????????????????################## # "!/#%# | | ???????????????????# """""" # # %%!/#%# | | ???????????????????# """""" # # !!!!!/# | | ???????????????????# """""" + # "*!%[%# | | ???????????????????# ! """""" #*# """=%%*% | | ???????????????????# """""" #%# """ !*=% | | ?????????????????### #!# " #/[ | | ?????????????????? + # # #%[ | | ???????????????????# = #!# #!* | | ???????????????????# * #|##########![ | | ???????????????????### ######%#????????#*! | | ???????????????????## m%i u E%############ | | ???????????????????# @ % p ## ]! | | ???????????????????## KK i ## !! | | ????????????????????# b %!## ! | | ????????????????????# lg %## | | ????????????????????# # *%! ## | | ????????????????????### =%* %## | | ??????????????????????### % %! # | | ??????????????????????# # u %"" # | | ??????????????????????### " % !# | | ??????????????????????# # " %!" | | ??????????????????????# # %% [%# | | ????????????????????# % [ *!# | | ????????????????????### %% % %== ########### | | ?????????????????????# ##%##### #? | | ?????????????????????##??#R# #?# # | | ?????????????????????????#%#???# # | | ?????????????????????????#%#???# + | | ???????????????????????? *#???# # | | ?????????????????????? #???# # | | ???????????????????? % #???# #? | | ??????????????????# #???####+### #? | | ??????????????????# #?????? ?# #?? | | ??????????????????# #?????? ?# #?? | | ??????????????????+ #?????? = ?# #??? | | ??????????????????# #?????? ?# #??? | +----------------------------------------------------+ Best States ------------- Heat Dissipation 149 Coolant Potential 120 Energy Generation 69 Energy Capacity 940 Matter Stores 300 Matter Capacity 300 Sight Range 23 Robot Scan Range 16 Terrain Scan Density 10 Jamming Range 16 EM Shielding 4 Armor Coverage 2250 Resistance: KI 25 Resistance: TH 10 Phase Shifting 15 Evasion (%) 55 Targeting Accuracy 24 Target Analysis 10 Core Analysis 12 Armor Integrity Analysis 40 Recoil Reduction 6 Energy Filtering 30 Salvage Targeting 3 Offensive Hacking 24 Defensive Hacking 10 Item Schematics ----------------- Exp. Coolant Injector | -2/Section 7 | Archive Hds. Centrium Heavy Treads | -2/Section 7 | Archive Imp. Lightning Gun | -2/Section 7 | Archive Stealth Drone Bay | -2/Section 7 | Archive Neutron Missile Launcher | -2/Section 7 | Archive Robot Schematics ------------------ T-07 Excavator | -2/Section 7 | Archive Fabricated ------------ Nothing Repaired ---------- Imp. Assault Rifle | 12% | -8/Materials Imp. Assault Rifle | 45% | -8/Materials Med. Armor Plating | 35% | -8/Materials Gauss Rifle | 70% | -8/Materials Imp. Assault Rifle | 61% | -8/Materials | Broken Imp. Assault Rifle | 1% | -8/Materials KE Penetrator | 30% | -4/Factory | Broken Studied --------- None Alien Tech Used ----------------- Core Expander Core Reset Matrix Integrated Mediator Integrated Thermoelectric Network Core Membrane Sigix Sheargun Subatomic Replicator LRC Energy Well LRC Armor Integrated Dissipator Transdimensional Reconstructor Achievements -------------- Just Shoot The Terminal Challenges ------------ None Game ------ Seed PotentialSmartbombMachine Manual? 0 Play Time 06:03:19 Cumulative 379.8 hours Start 2025.10.26 @ 15:59:37 End 2025.10.26 @ 23:55:33 Sessions 3 Manual Loads 0 Difficulty Rogue Special Mode None Game No. 145 Rogue 145 Adventurer 0 Explorer 0 Win Type - Total 27 Types 1/2/13/0/0/1/8/0/1/1 Lore% 82 Gallery% 71 Achievement% 61 Wizard Run 0 Options --------- Layout 1 ASCII 0 Keyboard 0 Movement Arrows Keybinds 0 Fullscreen 2 Font 24/Terminus Map View 50x35 Zoom Use 0% Tactical HUD 1 Map Filters NONE Filters NONE Steam 1 RUN: d0bcae92-19f8-4329-9e1a-91bb9851b4f4